{"text_format":"1","workbook":"xlsx","n_sheets":15,"sheets":["Introduction","NOx Limits Summary","VOCs Limits Summary","RACT summary","Boilers_Coal","Boilers_Nat_Gas","Boilers_Oil","Combustion_Gas_Turbines","IC_Engines","NOx_MWC","Cement_Kilns","Hot_Mix_Asphalt_Production","Glass_Furnaces","NatGas_Pipeline_Compressors","VOCs"],"not_rendered":{"charts":0,"images":4,"macros":1,"external_links":0,"defined_names":20,"comments":4,"pivot_tables":0},"unopened":[],"bounds":{"document_bytes":16777216,"sheet_cells":100000,"rows_first":2000,"rows_last":500,"rows_between":2000,"halvings":0,"cell_chars":16384,"cell_head_chars":4096},"cells_cut":0,"cells_raw":0,"read":"whole","date_system":"1900"}

{"sheet":"Introduction","index":0,"n_rows":0,"n_cols":0,"rows_kept":0,"cut":false,"hidden":false,"merged":[]}

{"sheet":"NOx Limits Summary","index":1,"n_rows":24,"n_cols":15,"rows_kept":24,"cut":false,"hidden":false,"merged":[[17,5,18,5],[13,5,14,5],[15,5,16,5],[13,4,20,4],[21,4,23,5],[19,5,20,5],[1,4,6,4],[1,5,2,5],[3,5,4,5],[5,5,6,5],[7,4,12,4],[7,5,8,5],[9,5,10,5],[11,5,12,5]]}
[null,null,null,null,"Source","Size/Facility","Item","CT","DC","MD","MA","NJ","NY","PA","RI"]
[null,null,null,null,"Coal Boilers","50-100 (mmBtu/hr)","NOx Limit",{"$f":"_xlfn.IFNA(VLOOKUP(\"CT\",Boilers_Coal!$A$9:$H$60,3),\"N/A\")","v":" 0.28 lb/MMBtu (Through May 30, 2023),  0.12 lb/MMBtu (Beginning June 1, 2023).  Ozone season and non-ozone season limits also apply.  "},{"$f":"_xlfn.IFNA(VLOOKUP(\"DC\",Boilers_Coal!$A$9:$H$60,3),\"N/A\")","v":0.12},{"$f":"_xlfn.IFNA(VLOOKUP(\"MD\",Boilers_Coal!$A$9:$H$60,3),\"N/A\")","v":"0.38 to 1.0 depending on boiler type"},{"$f":"_xlfn.IFNA(VLOOKUP(\"MA\",Boilers_Coal!$A$9:$H$60,3),\"N/A\")","v":0.43},{"$f":"_xlfn.IFNA(VLOOKUP(\"NJ\",Boilers_Coal!$A$9:$H$60,3),\"N/A\")","v":"no limit"},{"$f":"_xlfn.IFNA(VLOOKUP(\"NY\",Boilers_Coal!$A$9:$H$60,3),\"N/A\")","v":"No limits"},{"$f":"_xlfn.IFNA(VLOOKUP(\"PA\",Boilers_Coal!$A$9:$H$60,3),\"N/A\")","v":"0.45 lbs/MMBtu"},{"$f":"_xlfn.IFNA(VLOOKUP(\"RI\",Boilers_Coal!$A$9:$H$60,3),\"N/A\")","v":"no limit"}]
[null,null,null,null,null,null,"Averaging Period",{"$f":"_xlfn.IFNA(VLOOKUP(\"CT\",Boilers_Coal!$A$9:$H$60,4),\"N/A\")","v":"Daily block average."},{"$f":"_xlfn.IFNA(VLOOKUP(\"DC\",Boilers_Coal!$A$9:$H$60,4),\"N/A\")","v":"calendar day average"},{"$f":"_xlfn.IFNA(VLOOKUP(\"MD\",Boilers_Coal!$A$9:$H$60,4),\"N/A\")","v":"30 day rolling"},{"$f":"_xlfn.IFNA(VLOOKUP(\"MA\",Boilers_Coal!$A$9:$H$60,4),\"N/A\")","v":"1 hr"},{"$f":"_xlfn.IFNA(VLOOKUP(\"NJ\",Boilers_Coal!$A$9:$H$60,4),\"N/A\")","v":"not applicable"},{"$f":"_xlfn.IFNA(VLOOKUP(\"NY\",Boilers_Coal!$A$9:$H$60,4),\"N/A\")","v":"not applicable"},{"$f":"_xlfn.IFNA(VLOOKUP(\"PA\",Boilers_Coal!$A$9:$H$60,4),\"N/A\")","v":"Daily, if CEMS"},{"$f":"_xlfn.IFNA(VLOOKUP(\"RI\",Boilers_Coal!$A$9:$H$60,4),\"N/A\")","v":"not applicable"}]
[null,null,null,null,null,"100-125 (mmBtu/hr)","NOx Limit",{"$f":"_xlfn.IFNA(VLOOKUP(\"CT\",Boilers_Coal!$A$8:$H$60,5),\"N/A\")","v":" 0.28 lb/MMBtu (Through May 30, 2023),  0.12 lb/MMBtu (Beginning June 1, 2023).  Ozone season and non-ozone season limits also apply.  "},{"$f":"_xlfn.IFNA(VLOOKUP(\"DC\",Boilers_Coal!$A$8:$H$60,5),\"N/A\")","v":0.12},{"$f":"_xlfn.IFNA(VLOOKUP(\"MD\",Boilers_Coal!$A$8:$H$60,5),\"N/A\")","v":0.65},{"$f":"_xlfn.IFNA(VLOOKUP(\"MA\",Boilers_Coal!$A$8:$H$60,5),\"N/A\")","v":0.12},{"$f":"_xlfn.IFNA(VLOOKUP(\"NJ\",Boilers_Coal!$A$8:$H$60,5),\"N/A\")","v":"no limit"},{"$f":"_xlfn.IFNA(VLOOKUP(\"NY\",Boilers_Coal!$A$8:$H$60,5),\"N/A\")","v":"0.08 to 0.20  lbs/MMBtu"},{"$f":"_xlfn.IFNA(VLOOKUP(\"PA\",Boilers_Coal!$A$8:$H$60,5),\"N/A\")","v":"0.45 lbs/MMBtu"},{"$f":"_xlfn.IFNA(VLOOKUP(\"RI\",Boilers_Coal!$A$8:$H$60,5),\"N/A\")","v":"no limit"}]
[null,null,null,null,null,null,"Averaging Period",{"$f":"_xlfn.IFNA(VLOOKUP(\"CT\",Boilers_Coal!$A$8:$H$60,6),\"N/A\")","v":"Daily block average."},{"$f":"_xlfn.IFNA(VLOOKUP(\"DC\",Boilers_Coal!$A$8:$H$60,6),\"N/A\")","v":"calendar day average"},{"$f":"_xlfn.IFNA(VLOOKUP(\"MD\",Boilers_Coal!$A$8:$H$60,6),\"N/A\")","v":"30 day rolling average"},{"$f":"_xlfn.IFNA(VLOOKUP(\"MA\",Boilers_Coal!$A$8:$H$60,6),\"N/A\")","v":"1 hr"},{"$f":"_xlfn.IFNA(VLOOKUP(\"NJ\",Boilers_Coal!$A$8:$H$60,6),\"N/A\")","v":"not applicable"},{"$f":"_xlfn.IFNA(VLOOKUP(\"NY\",Boilers_Coal!$A$8:$H$60,6),\"N/A\")","v":"With CEM - 24 hour ozone season/ 30 day non-ozone season wo/CEM - 1-hour"},{"$f":"_xlfn.IFNA(VLOOKUP(\"PA\",Boilers_Coal!$A$8:$H$60,6),\"N/A\")","v":"Daily, if CEMS. "},{"$f":"_xlfn.IFNA(VLOOKUP(\"RI\",Boilers_Coal!$A$8:$H$60,6),\"N/A\")","v":"not applicable"}]
[null,null,null,null,null,">250 (mmBtu/hr)","NOx Limit",{"$f":"_xlfn.IFNA(VLOOKUP(\"CT\",Boilers_Coal!$A$8:$H$60,7),\"N/A\")","v":" 0.28 lb/MMBtu (Through May 30, 2023),  0.12 lb/MMBtu (Beginning June 1, 2023).  Ozone season and non-ozone season limits also apply. "},{"$f":"_xlfn.IFNA(VLOOKUP(\"DC\",Boilers_Coal!$A$8:$H$60,7),\"N/A\")","v":0.12},{"$f":"_xlfn.IFNA(VLOOKUP(\"MD\",Boilers_Coal!$A$8:$H$60,7),\"N/A\")","v":"0.45 to 0.8 depending on boiler type"},{"$f":"_xlfn.IFNA(VLOOKUP(\"MA\",Boilers_Coal!$A$8:$H$60,7),\"N/A\")","v":0.12},{"$f":"_xlfn.IFNA(VLOOKUP(\"NJ\",Boilers_Coal!$A$8:$H$60,7),\"N/A\")","v":"1.50 Lb/MWH "},{"$f":"_xlfn.IFNA(VLOOKUP(\"NY\",Boilers_Coal!$A$8:$H$60,7),\"N/A\")","v":"0.08 to 0.20 lbs/MMBtu"},{"$f":"_xlfn.IFNA(VLOOKUP(\"PA\",Boilers_Coal!$A$8:$H$60,7),\"N/A\")","v":"Boilers (Case-by-case); CFB (0.16 lbs/MMBtu)"},{"$f":"_xlfn.IFNA(VLOOKUP(\"RI\",Boilers_Coal!$A$8:$H$60,7),\"N/A\")","v":"no limit"}]
[null,null,null,null,null,null,"Averaging Period",{"$f":"_xlfn.IFNA(VLOOKUP(\"CT\",Boilers_Coal!$A$8:$H$60,8),\"N/A\")","v":"Daily block average."},{"$f":"_xlfn.IFNA(VLOOKUP(\"DC\",Boilers_Coal!$A$8:$H$60,8),\"N/A\")","v":"calendar day average"},{"$f":"_xlfn.IFNA(VLOOKUP(\"MD\",Boilers_Coal!$A$8:$H$60,8),\"N/A\")","v":"30 day rolling average"},{"$f":"_xlfn.IFNA(VLOOKUP(\"MA\",Boilers_Coal!$A$8:$H$60,8),\"N/A\")","v":"24 hr"},{"$f":"_xlfn.IFNA(VLOOKUP(\"NJ\",Boilers_Coal!$A$8:$H$60,8),\"N/A\")","v":"With CEM-Each calendar day during ozone season.  30-day during non-ozone season."},{"$f":"_xlfn.IFNA(VLOOKUP(\"NY\",Boilers_Coal!$A$8:$H$60,8),\"N/A\")","v":"With CEM - 24 hour ozone season/ 30 day non-ozone season wo/CEM - 1-hour"},{"$f":"_xlfn.IFNA(VLOOKUP(\"PA\",Boilers_Coal!$A$8:$H$60,8),\"N/A\")","v":"Boilers (Case-by-case); CFB (Daily, if CEMS)"},{"$f":"_xlfn.IFNA(VLOOKUP(\"RI\",Boilers_Coal!$A$8:$H$60,8),\"N/A\")","v":"not applicable"}]
[null,null,null,null,"Natural Gas Boilers","50-100 (mmBtu/hr)","NOx Limit",{"$f":"_xlfn.IFNA(VLOOKUP(\"CT\",Boilers_Nat_Gas!$A$8:$H$60,3),\"N/A\")","v":" 0.20-0.30  (Through May 30, 2023); 0.05 - 0.10 (Beginning June 1, 2023).  Ozone season and non-ozone season limits also apply."},{"$f":"_xlfn.IFNA(VLOOKUP(\"DC\",Boilers_Nat_Gas!$A$8:$H$60,3),\"N/A\")","v":0.05},{"$f":"_xlfn.IFNA(VLOOKUP(\"MD\",Boilers_Nat_Gas!$A$8:$H$60,3),\"N/A\")","v":"Tune-up"},{"$f":"_xlfn.IFNA(VLOOKUP(\"MA\",Boilers_Nat_Gas!$A$8:$H$60,3),\"N/A\")","v":0.1},{"$f":"_xlfn.IFNA(VLOOKUP(\"NJ\",Boilers_Nat_Gas!$A$8:$H$60,3),\"N/A\")","v":"0.05 Lb/MMBTU                (25 to 100 MMBTU/Hr boilers)"},{"$f":"_xlfn.IFNA(VLOOKUP(\"NY\",Boilers_Nat_Gas!$A$8:$H$60,3),\"N/A\")","v":"gas only:  0.05                        gas/distillate boilers: 0.08  gas/residual boilers: 0.20 "},{"$f":"_xlfn.IFNA(VLOOKUP(\"PA\",Boilers_Nat_Gas!$A$8:$H$60,3),\"N/A\")","v":"0.1 lb/MMBtu"},{"$f":"_xlfn.IFNA(VLOOKUP(\"RI\",Boilers_Nat_Gas!$A$8:$H$60,3),\"N/A\")","v":0.1}]
[null,null,null,null,null,null,"Averaging Period",{"$f":"_xlfn.IFNA(VLOOKUP(\"CT\",Boilers_Nat_Gas!$A$8:$H$60,4),\"N/A\")","v":"Daily block average"},{"$f":"_xlfn.IFNA(VLOOKUP(\"DC\",Boilers_Nat_Gas!$A$8:$H$60,4),\"N/A\")","v":"calendar day average"},{"$f":"_xlfn.IFNA(VLOOKUP(\"MD\",Boilers_Nat_Gas!$A$8:$H$60,4),\"N/A\")","v":"not applicable"},{"$f":"_xlfn.IFNA(VLOOKUP(\"MA\",Boilers_Nat_Gas!$A$8:$H$60,4),\"N/A\")","v":"1-hour"},{"$f":"_xlfn.IFNA(VLOOKUP(\"NJ\",Boilers_Nat_Gas!$A$8:$H$60,4),\"N/A\")","v":"1-hour. Daily-if CEM"},{"$f":"_xlfn.IFNA(VLOOKUP(\"NY\",Boilers_Nat_Gas!$A$8:$H$60,4),\"N/A\")","v":"With CEM - 24 hour ozone season/ 30 day non-ozone season wo/CEM - 1-hour"},{"$f":"_xlfn.IFNA(VLOOKUP(\"PA\",Boilers_Nat_Gas!$A$8:$H$60,4),\"N/A\")","v":"Daily, if CEMS"},{"$f":"_xlfn.IFNA(VLOOKUP(\"RI\",Boilers_Nat_Gas!$A$8:$H$60,4),\"N/A\")","v":"instantaneous"}]
[null,null,null,null,null,"100-125 (mmBtu/hr)","NOx Limit",{"$f":"_xlfn.IFNA(VLOOKUP(\"CT\",Boilers_Nat_Gas!$A$8:$H$60,5),\"N/A\")","v":" 0.10 - 0.30 (Through May 30, 2023); 0.10 (Beginning June 1, 2023).  Ozone season and non-ozone season limits also apply.  "},{"$f":"_xlfn.IFNA(VLOOKUP(\"DC\",Boilers_Nat_Gas!$A$8:$H$60,5),\"N/A\")","v":0.05},{"$f":"_xlfn.IFNA(VLOOKUP(\"MD\",Boilers_Nat_Gas!$A$8:$H$60,5),\"N/A\")","v":0.2},{"$f":"_xlfn.IFNA(VLOOKUP(\"MA\",Boilers_Nat_Gas!$A$8:$H$60,5),\"N/A\")","v":"0.6 gas only    / 0.15 gas & oil"},{"$f":"_xlfn.IFNA(VLOOKUP(\"NJ\",Boilers_Nat_Gas!$A$8:$H$60,5),\"N/A\")","v":"0.1 Lb/MMBTU                "},{"$f":"_xlfn.IFNA(VLOOKUP(\"NY\",Boilers_Nat_Gas!$A$8:$H$60,5),\"N/A\")","v":"gas only: 0.06                     gas/oil boilers: 0.20"},{"$f":"_xlfn.IFNA(VLOOKUP(\"PA\",Boilers_Nat_Gas!$A$8:$H$60,5),\"N/A\")","v":"0.1 Lb/MMBTU                "},{"$f":"_xlfn.IFNA(VLOOKUP(\"RI\",Boilers_Nat_Gas!$A$8:$H$60,5),\"N/A\")","v":0.1}]
[null,null,null,null,null,null,"Averaging Period",{"$f":"_xlfn.IFNA(VLOOKUP(\"CT\",Boilers_Nat_Gas!$A$8:$H$60,6),\"N/A\")","v":"Daily block average"},{"$f":"_xlfn.IFNA(VLOOKUP(\"DC\",Boilers_Nat_Gas!$A$8:$H$60,6),\"N/A\")","v":"calendar day average"},{"$f":"_xlfn.IFNA(VLOOKUP(\"MD\",Boilers_Nat_Gas!$A$8:$H$60,6),\"N/A\")","v":"30 day rolling average"},{"$f":"_xlfn.IFNA(VLOOKUP(\"MA\",Boilers_Nat_Gas!$A$8:$H$60,6),\"N/A\")","v":"1-hour"},{"$f":"_xlfn.IFNA(VLOOKUP(\"NJ\",Boilers_Nat_Gas!$A$8:$H$60,6),\"N/A\")","v":"1-hour. Daily-if CEM"},{"$f":"_xlfn.IFNA(VLOOKUP(\"NY\",Boilers_Nat_Gas!$A$8:$H$60,6),\"N/A\")","v":"With CEM - 24 hour ozone season/ 30 day non-ozone season wo/CEM - 1-hour"},{"$f":"_xlfn.IFNA(VLOOKUP(\"PA\",Boilers_Nat_Gas!$A$8:$H$60,6),\"N/A\")","v":"Daily, if CEMS"},{"$f":"_xlfn.IFNA(VLOOKUP(\"RI\",Boilers_Nat_Gas!$A$8:$H$60,6),\"N/A\")","v":"see previous"}]
[null,null,null,null,null,">250 (mmBtu/hr)","NOx Limit",{"$f":"_xlfn.IFNA(VLOOKUP(\"CT\",Boilers_Nat_Gas!$A$8:$H$60,7),\"N/A\")","v":"0.10 - 0.30 (Through May 30, 2023); 0.10 (Beginning June 1, 2023).  Ozone season and non-ozone season limits also apply. "},{"$f":"_xlfn.IFNA(VLOOKUP(\"DC\",Boilers_Nat_Gas!$A$8:$H$60,7),\"N/A\")","v":0.05},{"$f":"_xlfn.IFNA(VLOOKUP(\"MD\",Boilers_Nat_Gas!$A$8:$H$60,7),\"N/A\")","v":0.2},{"$f":"_xlfn.IFNA(VLOOKUP(\"MA\",Boilers_Nat_Gas!$A$8:$H$60,7),\"N/A\")","v":"0.08 gas only O.15 oil"},{"$f":"_xlfn.IFNA(VLOOKUP(\"NJ\",Boilers_Nat_Gas!$A$8:$H$60,7),\"N/A\")","v":"1.0 Lb/MWH (0.10 Lb/MMBTU) (boilers serving EGU)"},{"$f":"_xlfn.IFNA(VLOOKUP(\"NY\",Boilers_Nat_Gas!$A$8:$H$60,7),\"N/A\")","v":"gas only: 0.08                     gas/oil boilers: 0.20"},{"$f":"_xlfn.IFNA(VLOOKUP(\"PA\",Boilers_Nat_Gas!$A$8:$H$60,7),\"N/A\")","v":"0.1 lb/MMBtu"},{"$f":"_xlfn.IFNA(VLOOKUP(\"RI\",Boilers_Nat_Gas!$A$8:$H$60,7),\"N/A\")","v":"0.2 (utility boiler)"}]
[null,null,null,null,null,null,"Averaging Period",{"$f":"_xlfn.IFNA(VLOOKUP(\"CT\",Boilers_Nat_Gas!$A$8:$H$60,8),\"N/A\")","v":"Daily block average"},{"$f":"_xlfn.IFNA(VLOOKUP(\"DC\",Boilers_Nat_Gas!$A$8:$H$60,8),\"N/A\")","v":"calendar day average"},{"$f":"_xlfn.IFNA(VLOOKUP(\"MD\",Boilers_Nat_Gas!$A$8:$H$60,8),\"N/A\")","v":"30 day rolling average"},{"$f":"_xlfn.IFNA(VLOOKUP(\"MA\",Boilers_Nat_Gas!$A$8:$H$60,8),\"N/A\")","v":"24-hour"},{"$f":"_xlfn.IFNA(VLOOKUP(\"NJ\",Boilers_Nat_Gas!$A$8:$H$60,8),\"N/A\")","v":"Calendar day w/CEM"},{"$f":"_xlfn.IFNA(VLOOKUP(\"NY\",Boilers_Nat_Gas!$A$8:$H$60,8),\"N/A\")","v":"With CEM - 24 hour ozone season/ 30 day non-ozone season "},{"$f":"_xlfn.IFNA(VLOOKUP(\"PA\",Boilers_Nat_Gas!$A$8:$H$60,8),\"N/A\")","v":"Daily, if CEMS"},{"$f":"_xlfn.IFNA(VLOOKUP(\"RI\",Boilers_Nat_Gas!$A$8:$H$60,8),\"N/A\")","v":"see previous"}]
[null,null,null,null,"IC Engines","Gas-fired, Lean Burn","NOx Limit",{"$f":"_xlfn.IFNA(VLOOKUP(\"CT\",IC_Engines!$A$8:$J$60,3),\"N/A\")","v":"2.5 g/bk hp-hr (Through May 30, 2023)                                                      1.5 g/bk hp-hr (Beginning June 1, 2023)"},{"$f":"_xlfn.IFNA(VLOOKUP(\"DC\",IC_Engines!$A$8:$J$60,3),\"N/A\")","v":"0.7 g/b-hp"},{"$f":"_xlfn.IFNA(VLOOKUP(\"MD\",IC_Engines!$A$8:$J$60,3),\"N/A\")","v":"40 CFR Part 63 Subpart ZZZZ; 40 CFR Subpart IIII or JJJJ"},{"$f":"_xlfn.IFNA(VLOOKUP(\"MA\",IC_Engines!$A$8:$J$60,3),\"N/A\")","v":"1.5 g/bhp-hr"},{"$f":"_xlfn.IFNA(VLOOKUP(\"NJ\",IC_Engines!$A$8:$J$60,3),\"N/A\")","v":"1.5 g/bhp-hr (200 bhp/148 KW or greater), 0.9 g/bhp-hr (50 bhp/37 KW or greater)"},{"$f":"_xlfn.IFNA(VLOOKUP(\"NY\",IC_Engines!$A$8:$J$60,3),\"N/A\")","v":"1.5 grams/bhp-hr"},{"$f":"_xlfn.IFNA(VLOOKUP(\"PA\",IC_Engines!$A$8:$J$60,3),\"N/A\")","v":"3 g/bhp-hr (= or > 500 and < 3500 BHP), 0.6 g/bhp-hr (= or > 3500 BHP)"},{"$f":"_xlfn.IFNA(VLOOKUP(\"RI\",IC_Engines!$A$8:$J$60,3),\"N/A\")","v":2.5}]
[null,null,null,null,null,null,"Averaging Period",{"$f":"_xlfn.IFNA(VLOOKUP(\"CT\",IC_Engines!$A$8:$J$60,4),\"N/A\")","v":"Daily block average."},{"$f":"_xlfn.IFNA(VLOOKUP(\"DC\",IC_Engines!$A$8:$J$60,4),\"N/A\")","v":"Instantaneous"},{"$f":"_xlfn.IFNA(VLOOKUP(\"MD\",IC_Engines!$A$8:$J$60,4),\"N/A\")","v":"see cite in cell C20"},{"$f":"_xlfn.IFNA(VLOOKUP(\"MA\",IC_Engines!$A$8:$J$60,4),\"N/A\")","v":"       1-hour or 24-hour if equal to or greater than 30 MM Btu/hr"},{"$f":"_xlfn.IFNA(VLOOKUP(\"NJ\",IC_Engines!$A$8:$J$60,4),\"N/A\")","v":"1-hour"},{"$f":"_xlfn.IFNA(VLOOKUP(\"NY\",IC_Engines!$A$8:$J$60,4),\"N/A\")","v":"1-hour"},{"$f":"_xlfn.IFNA(VLOOKUP(\"PA\",IC_Engines!$A$8:$J$60,4),\"N/A\")","v":"1-hour "},{"$f":"_xlfn.IFNA(VLOOKUP(\"RI\",IC_Engines!$A$8:$J$60,4),\"N/A\")","v":"Instantaneous"}]
[null,null,null,null,null,"Gas-fired, Rich Burn","NOx Limit",{"$f":"_xlfn.IFNA(VLOOKUP(\"CT\",IC_Engines!$A$8:$J$60,5),\"N/A\")","v":"2.5 g/bk hp-hr (Through May 30, 2023)                                                        1.5 g/bk hp-hr (Beginning June 1, 2023)"},{"$f":"_xlfn.IFNA(VLOOKUP(\"DC\",IC_Engines!$A$8:$J$60,5),\"N/A\")","v":"0.7 g/b-hp"},{"$f":"_xlfn.IFNA(VLOOKUP(\"MD\",IC_Engines!$A$8:$J$60,5),\"N/A\")","v":"40 CFR Part 63 Subpart ZZZZ; 40 CFR Subpart IIII or JJJJ"},{"$f":"_xlfn.IFNA(VLOOKUP(\"MA\",IC_Engines!$A$8:$J$60,5),\"N/A\")","v":"1.5 g/bhp-hr"},{"$f":"_xlfn.IFNA(VLOOKUP(\"NJ\",IC_Engines!$A$8:$J$60,5),\"N/A\")","v":"1.5 g/bhp-hr (200 bhp/148 kw or greater), 0.9 g/bhp-hr (50 bhp/37 kw or greater)"},{"$f":"_xlfn.IFNA(VLOOKUP(\"NY\",IC_Engines!$A$8:$J$60,5),\"N/A\")","v":"1.5 grams/bhp-hr"},{"$f":"_xlfn.IFNA(VLOOKUP(\"PA\",IC_Engines!$A$8:$J$60,5),\"N/A\")","v":"2  grams/bhp-hr"},{"$f":"_xlfn.IFNA(VLOOKUP(\"RI\",IC_Engines!$A$8:$J$60,5),\"N/A\")","v":1.5}]
[null,null,null,null,null,null,"Averaging Period",{"$f":"_xlfn.IFNA(VLOOKUP(\"CT\",IC_Engines!$A$8:$J$60,6),\"N/A\")","v":"Daily block average."},{"$f":"_xlfn.IFNA(VLOOKUP(\"DC\",IC_Engines!$A$8:$J$60,6),\"N/A\")","v":"Instantaneous"},{"$f":"_xlfn.IFNA(VLOOKUP(\"MD\",IC_Engines!$A$8:$J$60,6),\"N/A\")","v":"see cite in cell C20"},{"$f":"_xlfn.IFNA(VLOOKUP(\"MA\",IC_Engines!$A$8:$J$60,6),\"N/A\")","v":"      1-hour or 24-hour if equal to or greater than 30 MMBtu/hr"},{"$f":"_xlfn.IFNA(VLOOKUP(\"NJ\",IC_Engines!$A$8:$J$60,6),\"N/A\")","v":"1-hour"},{"$f":"_xlfn.IFNA(VLOOKUP(\"NY\",IC_Engines!$A$8:$J$60,6),\"N/A\")","v":"1-hour"},{"$f":"_xlfn.IFNA(VLOOKUP(\"PA\",IC_Engines!$A$8:$J$60,6),\"N/A\")","v":"1-hour "},{"$f":"_xlfn.IFNA(VLOOKUP(\"RI\",IC_Engines!$A$8:$J$60,6),\"N/A\")","v":"Instantaneous"}]
[null,null,null,null,null,"Diesel","NOx Limit",{"$f":"_xlfn.IFNA(VLOOKUP(\"CT\",IC_Engines!$A$8:$J$60,7),\"N/A\")","v":"8.0 g/bk hp-hr (Through May 30, 2023)                                              1.5 - 2.3  g/bk hp-hr (Beginning June 1, 2023)"},{"$f":"_xlfn.IFNA(VLOOKUP(\"DC\",IC_Engines!$A$8:$J$60,7),\"N/A\")","v":"6.5 g/b-hp, if permitted on or after 8/3/2023\n2.3 g/b-hp, otherwise"},{"$f":"_xlfn.IFNA(VLOOKUP(\"MD\",IC_Engines!$A$8:$J$60,7),\"N/A\")","v":"40 CFR Part 63 Subpart ZZZZ; 40 CFR Subpart IIII or JJJJ"},{"$f":"_xlfn.IFNA(VLOOKUP(\"MA\",IC_Engines!$A$8:$J$60,7),\"N/A\")","v":"2.3 g/bhp-hr"},{"$f":"_xlfn.IFNA(VLOOKUP(\"NJ\",IC_Engines!$A$8:$J$60,7),\"N/A\")","v":"2.3 g/b/hp-hr "},{"$f":"_xlfn.IFNA(VLOOKUP(\"NY\",IC_Engines!$A$8:$J$60,7),\"N/A\")","v":"2.3 grams/bhp-hr"},{"$f":"_xlfn.IFNA(VLOOKUP(\"PA\",IC_Engines!$A$8:$J$60,7),\"N/A\")","v":"> 500 bhp (1.6  grams/bhp-hr)"},{"$f":"_xlfn.IFNA(VLOOKUP(\"RI\",IC_Engines!$A$8:$J$60,7),\"N/A\")","v":9}]
[null,null,null,null,null,null,"Averaging Period",{"$f":"_xlfn.IFNA(VLOOKUP(\"CT\",IC_Engines!$A$8:$J$60,8),\"N/A\")","v":"Daily block average."},{"$f":"_xlfn.IFNA(VLOOKUP(\"DC\",IC_Engines!$A$8:$J$60,8),\"N/A\")","v":"Instantaneous"},{"$f":"_xlfn.IFNA(VLOOKUP(\"MD\",IC_Engines!$A$8:$J$60,8),\"N/A\")","v":"see cite in cell C20"},{"$f":"_xlfn.IFNA(VLOOKUP(\"MA\",IC_Engines!$A$8:$J$60,8),\"N/A\")","v":"       1-hour or 24-hour if equal to or greater than 30 MM Btu/hr"},{"$f":"_xlfn.IFNA(VLOOKUP(\"NJ\",IC_Engines!$A$8:$J$60,8),\"N/A\")","v":"1-hour"},{"$f":"_xlfn.IFNA(VLOOKUP(\"NY\",IC_Engines!$A$8:$J$60,8),\"N/A\")","v":"1-hour"},{"$f":"_xlfn.IFNA(VLOOKUP(\"PA\",IC_Engines!$A$8:$J$60,8),\"N/A\")","v":"1-hour "},{"$f":"_xlfn.IFNA(VLOOKUP(\"RI\",IC_Engines!$A$8:$J$60,8),\"N/A\")","v":"Instantaneous"}]
[null,null,null,null,null,"Dual Fuel","NOx Limit",{"$f":"_xlfn.IFNA(VLOOKUP(\"CT\",IC_Engines!$A$8:$J$60,9),\"N/A\")","v":"Multi-fuel provisions.  See rule for details."},{"$f":"_xlfn.IFNA(VLOOKUP(\"DC\",IC_Engines!$A$8:$J$60,9),\"N/A\")","v":"6.5 g/b-hp, if permitted on or after 8/3/2023\n2.3 g/b-hp, otherwise"},{"$f":"_xlfn.IFNA(VLOOKUP(\"MD\",IC_Engines!$A$8:$J$60,9),\"N/A\")","v":"40 CFR Part 63 Subpart ZZZZ; 40 CFR Subpart IIII or JJJJ"},{"$f":"_xlfn.IFNA(VLOOKUP(\"MA\",IC_Engines!$A$8:$J$60,9),\"N/A\")","v":"2.3 g/bhp-hr"},{"$f":"_xlfn.IFNA(VLOOKUP(\"NJ\",IC_Engines!$A$8:$J$60,9),\"N/A\")","v":"2.3 g/bhp-hr"},{"$f":"_xlfn.IFNA(VLOOKUP(\"NY\",IC_Engines!$A$8:$J$60,9),\"N/A\")","v":"2.3 grams/bhp-hr"},{"$f":"_xlfn.IFNA(VLOOKUP(\"PA\",IC_Engines!$A$8:$J$60,9),\"N/A\")","v":"> 500 bhp (1.6  grams/bhp-hr)"},{"$f":"_xlfn.IFNA(VLOOKUP(\"RI\",IC_Engines!$A$8:$J$60,9),\"N/A\")","v":"Not specified in Regulation, no sources."}]
[null,null,null,null,null,null,"Averaging Period",{"$f":"_xlfn.IFNA(VLOOKUP(\"CT\",IC_Engines!$A$8:$J$60,10),\"N/A\")","v":"Daily block average."},{"$f":"_xlfn.IFNA(VLOOKUP(\"DC\",IC_Engines!$A$8:$J$60,10),\"N/A\")","v":"Instantaneous"},{"$f":"_xlfn.IFNA(VLOOKUP(\"MD\",IC_Engines!$A$8:$J$60,10),\"N/A\")","v":"see cite in cell C20"},{"$f":"_xlfn.IFNA(VLOOKUP(\"MA\",IC_Engines!$A$8:$J$60,10),\"N/A\")","v":"       1-hour or 24-hour if equal to or greater than 30 MM Btu/hr"},{"$f":"_xlfn.IFNA(VLOOKUP(\"NJ\",IC_Engines!$A$8:$J$60,10),\"N/A\")","v":"1-hour"},{"$f":"_xlfn.IFNA(VLOOKUP(\"NY\",IC_Engines!$A$8:$J$60,10),\"N/A\")","v":"1-hour"},{"$f":"_xlfn.IFNA(VLOOKUP(\"PA\",IC_Engines!$A$8:$J$60,10),\"N/A\")","v":"1-hour "},{"$f":"_xlfn.IFNA(VLOOKUP(\"RI\",IC_Engines!$A$8:$J$60,10),\"N/A\")","v":"not applicable"}]
[null,null,null,null,"Glass Furnaces",null,"Facility",{"$f":"_xlfn.IFNA(VLOOKUP(\"CT\",Glass_Furnaces!$A$8:$D$60,2),\"N/A\")","v":"N/A"},{"$f":"_xlfn.IFNA(VLOOKUP(\"DC\",Glass_Furnaces!$A$8:$D$60,2),\"N/A\")","v":"No Sources"},{"$f":"_xlfn.IFNA(VLOOKUP(\"MD\",Glass_Furnaces!$A$8:$D$60,2),\"N/A\")","v":"No Sources"},{"$f":"_xlfn.IFNA(VLOOKUP(\"MA\",Glass_Furnaces!$A$8:$D$60,2),\"N/A\")","v":0},{"$f":"_xlfn.IFNA(VLOOKUP(\"NJ\",Glass_Furnaces!$A$8:$D$60,2),\"N/A\")","v":"Existing facilities "},{"$f":"_xlfn.IFNA(VLOOKUP(\"NY\",Glass_Furnaces!$A$8:$D$60,2),\"N/A\")","v":0},{"$f":"_xlfn.IFNA(VLOOKUP(\"PA\",Glass_Furnaces!$A$8:$D$60,2),\"N/A\")","v":" "},{"$f":"_xlfn.IFNA(VLOOKUP(\"RI\",Glass_Furnaces!$A$8:$D$60,2),\"N/A\")","v":"No Sources"}]
[null,null,null,null,null,null,"NOx Limit",{"$f":"_xlfn.IFNA(VLOOKUP(\"CT\",Glass_Furnaces!$A$8:$D$60,3),\"N/A\")","v":"N/A"},{"$f":"_xlfn.IFNA(VLOOKUP(\"DC\",Glass_Furnaces!$A$8:$D$60,3),\"N/A\")","v":0},{"$f":"_xlfn.IFNA(VLOOKUP(\"MD\",Glass_Furnaces!$A$8:$D$60,3),\"N/A\")","v":0},{"$f":"_xlfn.IFNA(VLOOKUP(\"MA\",Glass_Furnaces!$A$8:$D$60,3),\"N/A\")","v":0},{"$f":"_xlfn.IFNA(VLOOKUP(\"NJ\",Glass_Furnaces!$A$8:$D$60,3),\"N/A\")","v":"9.2 Lbs/ton of glass removed for flat glass (b)"},{"$f":"_xlfn.IFNA(VLOOKUP(\"NY\",Glass_Furnaces!$A$8:$D$60,3),\"N/A\")","v":"NOx limits range from 1.89 lb/ton glass to 4.49 lb/ton glass"},{"$f":"_xlfn.IFNA(VLOOKUP(\"PA\",Glass_Furnaces!$A$8:$D$60,3),\"N/A\")","v":"4.0 lbs/ton of glass pulled for container glass and fiberglass; 7.0 lbs/ton of glass pulled for pressed, blown and flat glass; 6.0 lbs/ton of glass pulled for all other glass"},{"$f":"_xlfn.IFNA(VLOOKUP(\"RI\",Glass_Furnaces!$A$8:$D$60,3),\"N/A\")","v":0}]
[null,null,null,null,null,null,"Averaging Period",{"$f":"_xlfn.IFNA(VLOOKUP(\"CT\",Glass_Furnaces!$A$8:$F$60,4),\"N/A\")","v":"N/A"},{"$f":"_xlfn.IFNA(VLOOKUP(\"DC\",Glass_Furnaces!$A$8:$F$60,4),\"N/A\")","v":0},{"$f":"_xlfn.IFNA(VLOOKUP(\"MD\",Glass_Furnaces!$A$8:$F$60,4),\"N/A\")","v":0},{"$f":"_xlfn.IFNA(VLOOKUP(\"MA\",Glass_Furnaces!$A$8:$F$60,4),\"N/A\")","v":"No Sources"},{"$f":"_xlfn.IFNA(VLOOKUP(\"NJ\",Glass_Furnaces!$A$8:$F$60,4),\"N/A\")","v":"(a) W/O CEM: Average of three one-hour test per N.J.A.C. 7:27-19.15(e)2 (b) With CEM: Daily per N.J.A.C. 7:27-19.15(e)3"},{"$f":"_xlfn.IFNA(VLOOKUP(\"NY\",Glass_Furnaces!$A$8:$F$60,4),\"N/A\")","v":"30-day rolling average"},{"$f":"_xlfn.IFNA(VLOOKUP(\"PA\",Glass_Furnaces!$A$8:$F$60,4),\"N/A\")","v":"30-operating day"},{"$f":"_xlfn.IFNA(VLOOKUP(\"RI\",Glass_Furnaces!$A$8:$F$60,4),\"N/A\")","v":0}]

{"sheet":"VOCs Limits Summary","index":2,"n_rows":17,"n_cols":19,"rows_kept":17,"cut":false,"hidden":false,"merged":[[9,4,10,4],[11,4,12,4],[13,4,14,4],[0,4,0,5],[1,4,5,4],[6,4,7,4]]}
[null,null,null,null,"Source/Phase",null,"CT","DE","DC","ME","MD","MA","NH","NJ","NY","PA","RI","VT","VA"]
[null,null,null,null,"Consumer Products",{"$f":"INDEX(Consumer_Products[#Headers],2)","v":"Phase I 2001"},{"$f":"_xlfn.IFNA(VLOOKUP(G1, Consumer_Products[], MATCH(F2, Consumer_Products[#Headers],0), FALSE),\"N/A\")","v":"Effective"},{"$f":"_xlfn.IFNA(VLOOKUP(H1, Consumer_Products[], MATCH(F2, Consumer_Products[#Headers],0), FALSE),\"N/A\")","v":"Effective"},{"$f":"_xlfn.IFNA(VLOOKUP(I1, Consumer_Products[], MATCH(F2, Consumer_Products[#Headers],0), FALSE),\"N/A\")","v":"Effective"},{"$f":"_xlfn.IFNA(VLOOKUP(J1, Consumer_Products[], MATCH(F2, Consumer_Products[#Headers],0), FALSE),\"N/A\")","v":"Effective "},{"$f":"_xlfn.IFNA(VLOOKUP(K1, Consumer_Products[], MATCH(F2, Consumer_Products[#Headers],0), FALSE),\"N/A\")","v":"Effective"},{"$f":"_xlfn.IFNA(VLOOKUP(L1, Consumer_Products[], MATCH(F2, Consumer_Products[#Headers],0), FALSE),\"N/A\")","v":"Effective "},{"$f":"_xlfn.IFNA(VLOOKUP(M1, Consumer_Products[], MATCH(F2, Consumer_Products[#Headers],0), FALSE),\"N/A\")","v":"Effective"},{"$f":"_xlfn.IFNA(VLOOKUP(N1, Consumer_Products[], MATCH(F2, Consumer_Products[#Headers],0), FALSE),\"N/A\")","v":"Effective "},{"$f":"_xlfn.IFNA(VLOOKUP(O1, Consumer_Products[], MATCH(F2, Consumer_Products[#Headers],0), FALSE),\"N/A\")","v":"Effective"},{"$f":"_xlfn.IFNA(VLOOKUP(P1, Consumer_Products[], MATCH(F2, Consumer_Products[#Headers],0), FALSE),\"N/A\")","v":"Effective "},{"$f":"_xlfn.IFNA(VLOOKUP(Q1, Consumer_Products[], MATCH(F2, Consumer_Products[#Headers],0), FALSE),\"N/A\")","v":"Effective "},{"$f":"_xlfn.IFNA(VLOOKUP(R1, Consumer_Products[], MATCH(F2, Consumer_Products[#Headers],0), FALSE),\"N/A\")","v":"Not Enacted"},{"$f":"_xlfn.IFNA(VLOOKUP(S1, Consumer_Products[], MATCH(F2, Consumer_Products[#Headers],0), FALSE),\"N/A\")","v":"Effective"}]
[null,null,null,null,null,{"$f":"INDEX(Consumer_Products[#Headers],3)","v":"Phase II 2006"},{"$f":"_xlfn.IFNA(VLOOKUP(G1, Consumer_Products[], MATCH(F3, Consumer_Products[#Headers],0), FALSE),\"N/A\")","v":"Effective"},{"$f":"_xlfn.IFNA(VLOOKUP(H1, Consumer_Products[], MATCH(F3, Consumer_Products[#Headers],0), FALSE),\"N/A\")","v":"Effective"},{"$f":"_xlfn.IFNA(VLOOKUP(I1, Consumer_Products[], MATCH(F3, Consumer_Products[#Headers],0), FALSE),\"N/A\")","v":"Effective"},{"$f":"_xlfn.IFNA(VLOOKUP(J1, Consumer_Products[], MATCH(F3, Consumer_Products[#Headers],0), FALSE),\"N/A\")","v":"Effective "},{"$f":"_xlfn.IFNA(VLOOKUP(K1, Consumer_Products[], MATCH(F3, Consumer_Products[#Headers],0), FALSE),\"N/A\")","v":"Effective"},{"$f":"_xlfn.IFNA(VLOOKUP(L1, Consumer_Products[], MATCH(F3, Consumer_Products[#Headers],0), FALSE),\"N/A\")","v":"Effective"},{"$f":"_xlfn.IFNA(VLOOKUP(M1, Consumer_Products[], MATCH(F3, Consumer_Products[#Headers],0), FALSE),\"N/A\")","v":"Effective "},{"$f":"_xlfn.IFNA(VLOOKUP(N1, Consumer_Products[], MATCH(F3, Consumer_Products[#Headers],0), FALSE),\"N/A\")","v":"Effective"},{"$f":"_xlfn.IFNA(VLOOKUP(O1, Consumer_Products[], MATCH(F3, Consumer_Products[#Headers],0), FALSE),\"N/A\")","v":"Effective"},{"$f":"_xlfn.IFNA(VLOOKUP(P1, Consumer_Products[], MATCH(F3, Consumer_Products[#Headers],0), FALSE),\"N/A\")","v":"Effective "},{"$f":"_xlfn.IFNA(VLOOKUP(Q1, Consumer_Products[], MATCH(F3, Consumer_Products[#Headers],0), FALSE),\"N/A\")","v":"Effective "},{"$f":"_xlfn.IFNA(VLOOKUP(R1, Consumer_Products[], MATCH(F3, Consumer_Products[#Headers],0), FALSE),\"N/A\")","v":"Not Enacted"},{"$f":"_xlfn.IFNA(VLOOKUP(S1, Consumer_Products[], MATCH(F3, Consumer_Products[#Headers],0), FALSE),\"N/A\")","v":"Effective  "}]
[null,null,null,null,null,{"$f":"INDEX(Consumer_Products[#Headers],4)","v":"Phase III 2010"},{"$f":"_xlfn.IFNA(VLOOKUP(G1, Consumer_Products[], MATCH(F4, Consumer_Products[#Headers],0), FALSE),\"N/A\")","v":"Effective"},{"$f":"_xlfn.IFNA(VLOOKUP(H1, Consumer_Products[], MATCH(F4, Consumer_Products[#Headers],0), FALSE),\"N/A\")","v":"Effective"},{"$f":"_xlfn.IFNA(VLOOKUP(I1, Consumer_Products[], MATCH(F4, Consumer_Products[#Headers],0), FALSE),\"N/A\")","v":"Not Enacted"},{"$f":"_xlfn.IFNA(VLOOKUP(J1, Consumer_Products[], MATCH(F4, Consumer_Products[#Headers],0), FALSE),\"N/A\")","v":"Not Enacted"},{"$f":"_xlfn.IFNA(VLOOKUP(K1, Consumer_Products[], MATCH(F4, Consumer_Products[#Headers],0), FALSE),\"N/A\")","v":"Effective "},{"$f":"_xlfn.IFNA(VLOOKUP(L1, Consumer_Products[], MATCH(F4, Consumer_Products[#Headers],0), FALSE),\"N/A\")","v":"Not Enacted"},{"$f":"_xlfn.IFNA(VLOOKUP(M1, Consumer_Products[], MATCH(F4, Consumer_Products[#Headers],0), FALSE),\"N/A\")","v":"Effective"},{"$f":"_xlfn.IFNA(VLOOKUP(N1, Consumer_Products[], MATCH(F4, Consumer_Products[#Headers],0), FALSE),\"N/A\")","v":"Not Enacted"},{"$f":"_xlfn.IFNA(VLOOKUP(O1, Consumer_Products[], MATCH(F4, Consumer_Products[#Headers],0), FALSE),\"N/A\")","v":"Effective 1/1/2022"},{"$f":"_xlfn.IFNA(VLOOKUP(P1, Consumer_Products[], MATCH(F4, Consumer_Products[#Headers],0), FALSE),\"N/A\")","v":"Not Enacted"},{"$f":"_xlfn.IFNA(VLOOKUP(Q1, Consumer_Products[], MATCH(F4, Consumer_Products[#Headers],0), FALSE),\"N/A\")","v":"Effective "},{"$f":"_xlfn.IFNA(VLOOKUP(R1, Consumer_Products[], MATCH(F4, Consumer_Products[#Headers],0), FALSE),\"N/A\")","v":"Not Enacted"},{"$f":"_xlfn.IFNA(VLOOKUP(S1, Consumer_Products[], MATCH(F4, Consumer_Products[#Headers],0), FALSE),\"N/A\")","v":"Not Enacted"}]
[null,null,null,null,null,{"$f":"INDEX(Consumer_Products[#Headers],5)","v":"Phase IV 2012/2013"},{"$f":"_xlfn.IFNA(VLOOKUP(G1, Consumer_Products[], MATCH(F5, Consumer_Products[#Headers],0), FALSE),\"N/A\")","v":"Effective"},{"$f":"_xlfn.IFNA(VLOOKUP(H1, Consumer_Products[], MATCH(F5, Consumer_Products[#Headers],0), FALSE),\"N/A\")","v":"Effective"},{"$f":"_xlfn.IFNA(VLOOKUP(I1, Consumer_Products[], MATCH(F5, Consumer_Products[#Headers],0), FALSE),\"N/A\")","v":"Not Enacted"},{"$f":"_xlfn.IFNA(VLOOKUP(J1, Consumer_Products[], MATCH(F5, Consumer_Products[#Headers],0), FALSE),\"N/A\")","v":"Not Enacted"},{"$f":"_xlfn.IFNA(VLOOKUP(K1, Consumer_Products[], MATCH(F5, Consumer_Products[#Headers],0), FALSE),\"N/A\")","v":"Effective "},{"$f":"_xlfn.IFNA(VLOOKUP(L1, Consumer_Products[], MATCH(F5, Consumer_Products[#Headers],0), FALSE),\"N/A\")","v":"Effective (partial)"},{"$f":"_xlfn.IFNA(VLOOKUP(M1, Consumer_Products[], MATCH(F5, Consumer_Products[#Headers],0), FALSE),\"N/A\")","v":"Effective "},{"$f":"_xlfn.IFNA(VLOOKUP(N1, Consumer_Products[], MATCH(F5, Consumer_Products[#Headers],0), FALSE),\"N/A\")","v":"Not Enacted"},{"$f":"_xlfn.IFNA(VLOOKUP(O1, Consumer_Products[], MATCH(F5, Consumer_Products[#Headers],0), FALSE),\"N/A\")","v":"Effective, Compliance Date 1/1/2022"},{"$f":"_xlfn.IFNA(VLOOKUP(P1, Consumer_Products[], MATCH(F5, Consumer_Products[#Headers],0), FALSE),\"N/A\")","v":"Not Enacted"},{"$f":"_xlfn.IFNA(VLOOKUP(Q1, Consumer_Products[], MATCH(F5, Consumer_Products[#Headers],0), FALSE),\"N/A\")","v":"Effective "},{"$f":"_xlfn.IFNA(VLOOKUP(R1, Consumer_Products[], MATCH(F5, Consumer_Products[#Headers],0), FALSE),\"N/A\")","v":"Not Enacted"},{"$f":"_xlfn.IFNA(VLOOKUP(S1, Consumer_Products[], MATCH(F5, Consumer_Products[#Headers],0), FALSE),\"N/A\")","v":"Not Enacted"}]
[null,null,null,null,null,{"$f":"INDEX(Consumer_Products[#Headers],6)","v":"Phase V 2018 (RTG)"},{"$f":"_xlfn.IFNA(VLOOKUP(G1, Consumer_Products[], MATCH(F6, Consumer_Products[#Headers],0), FALSE),\"N/A\")","v":"Not Enacted"},{"$f":"_xlfn.IFNA(VLOOKUP(H1, Consumer_Products[], MATCH(F6, Consumer_Products[#Headers],0), FALSE),\"N/A\")","v":"Not Enacted"},{"$f":"_xlfn.IFNA(VLOOKUP(I1, Consumer_Products[], MATCH(F6, Consumer_Products[#Headers],0), FALSE),\"N/A\")","v":"Not Enacted"},{"$f":"_xlfn.IFNA(VLOOKUP(J1, Consumer_Products[], MATCH(F6, Consumer_Products[#Headers],0), FALSE),\"N/A\")","v":"Not Enacted"},{"$f":"_xlfn.IFNA(VLOOKUP(K1, Consumer_Products[], MATCH(F6, Consumer_Products[#Headers],0), FALSE),\"N/A\")","v":"Not Enacted"},{"$f":"_xlfn.IFNA(VLOOKUP(L1, Consumer_Products[], MATCH(F6, Consumer_Products[#Headers],0), FALSE),\"N/A\")","v":"Not Enacted"},{"$f":"_xlfn.IFNA(VLOOKUP(M1, Consumer_Products[], MATCH(F6, Consumer_Products[#Headers],0), FALSE),\"N/A\")","v":"Not Enacted"},{"$f":"_xlfn.IFNA(VLOOKUP(N1, Consumer_Products[], MATCH(F6, Consumer_Products[#Headers],0), FALSE),\"N/A\")","v":"Not Enacted"},{"$f":"_xlfn.IFNA(VLOOKUP(O1, Consumer_Products[], MATCH(F6, Consumer_Products[#Headers],0), FALSE),\"N/A\")","v":"Not Enacted"},{"$f":"_xlfn.IFNA(VLOOKUP(P1, Consumer_Products[], MATCH(F6, Consumer_Products[#Headers],0), FALSE),\"N/A\")","v":"Not Enacted"},{"$f":"_xlfn.IFNA(VLOOKUP(Q1, Consumer_Products[], MATCH(F6, Consumer_Products[#Headers],0), FALSE),\"N/A\")","v":"Not Enacted"},{"$f":"_xlfn.IFNA(VLOOKUP(R1, Consumer_Products[], MATCH(F6, Consumer_Products[#Headers],0), FALSE),\"N/A\")","v":"Not Enacted"},{"$f":"_xlfn.IFNA(VLOOKUP(S1, Consumer_Products[], MATCH(F6, Consumer_Products[#Headers],0), FALSE),\"N/A\")","v":"Not Enacted"}]
[null,null,null,null,"AIM",{"$f":"INDEX(AIM[#Headers],2)","v":"Phase I 2001"},{"$f":"_xlfn.IFNA(VLOOKUP(G1, AIM[], MATCH(F7, AIM[#Headers],0), FALSE),\"N/A\")","v":"Effective"},{"$f":"_xlfn.IFNA(VLOOKUP(H1, AIM[], MATCH(F7, AIM[#Headers],0), FALSE),\"N/A\")","v":"Effective"},{"$f":"_xlfn.IFNA(VLOOKUP(I1, AIM[], MATCH(F7, AIM[#Headers],0), FALSE),\"N/A\")","v":"Effective"},{"$f":"_xlfn.IFNA(VLOOKUP(J1, AIM[], MATCH(F7, AIM[#Headers],0), FALSE),\"N/A\")","v":"Effective "},{"$f":"_xlfn.IFNA(VLOOKUP(K1, AIM[], MATCH(F7, AIM[#Headers],0), FALSE),\"N/A\")","v":"Effective"},{"$f":"_xlfn.IFNA(VLOOKUP(L1, AIM[], MATCH(F7, AIM[#Headers],0), FALSE),\"N/A\")","v":"Effective "},{"$f":"_xlfn.IFNA(VLOOKUP(M1, AIM[], MATCH(F7, AIM[#Headers],0), FALSE),\"N/A\")","v":"Effective "},{"$f":"_xlfn.IFNA(VLOOKUP(N1, AIM[], MATCH(F7, AIM[#Headers],0), FALSE),\"N/A\")","v":"Effective"},{"$f":"_xlfn.IFNA(VLOOKUP(O1, AIM[], MATCH(F7, AIM[#Headers],0), FALSE),\"N/A\")","v":"Effective"},{"$f":"_xlfn.IFNA(VLOOKUP(P1, AIM[], MATCH(F7, AIM[#Headers],0), FALSE),\"N/A\")","v":"Effective "},{"$f":"_xlfn.IFNA(VLOOKUP(Q1, AIM[], MATCH(F7, AIM[#Headers],0), FALSE),\"N/A\")","v":"Effective"},{"$f":"_xlfn.IFNA(VLOOKUP(R1, AIM[], MATCH(F7, AIM[#Headers],0), FALSE),\"N/A\")","v":"Not Enacted"},{"$f":"_xlfn.IFNA(VLOOKUP(S1, AIM[], MATCH(F7, AIM[#Headers],0), FALSE),\"N/A\")","v":"Effective  "}]
[null,null,null,null,null,{"$f":"INDEX(AIM[#Headers],3)","v":"Phase II 2011"},{"$f":"_xlfn.IFNA(VLOOKUP(G1, AIM[], MATCH(F8, AIM[#Headers],0), FALSE),\"N/A\")","v":"Effective"},{"$f":"_xlfn.IFNA(VLOOKUP(H1, AIM[], MATCH(F8, AIM[#Headers],0), FALSE),\"N/A\")","v":"Effective"},{"$f":"_xlfn.IFNA(VLOOKUP(I1, AIM[], MATCH(F8, AIM[#Headers],0), FALSE),\"N/A\")","v":"Not Enacted"},{"$f":"_xlfn.IFNA(VLOOKUP(J1, AIM[], MATCH(F8, AIM[#Headers],0), FALSE),\"N/A\")","v":"Not Enacted"},{"$f":"_xlfn.IFNA(VLOOKUP(K1, AIM[], MATCH(F8, AIM[#Headers],0), FALSE),\"N/A\")","v":"Effective "},{"$f":"_xlfn.IFNA(VLOOKUP(L1, AIM[], MATCH(F8, AIM[#Headers],0), FALSE),\"N/A\")","v":"Not Enacted"},{"$f":"_xlfn.IFNA(VLOOKUP(M1, AIM[], MATCH(F8, AIM[#Headers],0), FALSE),\"N/A\")","v":"Not Enacted"},{"$f":"_xlfn.IFNA(VLOOKUP(N1, AIM[], MATCH(F8, AIM[#Headers],0), FALSE),\"N/A\")","v":"Proposal in progress"},{"$f":"_xlfn.IFNA(VLOOKUP(O1, AIM[], MATCH(F8, AIM[#Headers],0), FALSE),\"N/A\")","v":"Compliance date 7/1/2022"},{"$f":"_xlfn.IFNA(VLOOKUP(P1, AIM[], MATCH(F8, AIM[#Headers],0), FALSE),\"N/A\")","v":"Not Enacted"},{"$f":"_xlfn.IFNA(VLOOKUP(Q1, AIM[], MATCH(F8, AIM[#Headers],0), FALSE),\"N/A\")","v":"Effective "},{"$f":"_xlfn.IFNA(VLOOKUP(R1, AIM[], MATCH(F8, AIM[#Headers],0), FALSE),\"N/A\")","v":"Not Enacted"},{"$f":"_xlfn.IFNA(VLOOKUP(S1, AIM[], MATCH(F8, AIM[#Headers],0), FALSE),\"N/A\")","v":"Not Enacted"}]
[null,null,null,null,"Asphalt Paving",{"$f":"INDEX(Asphalt_Paving[#Headers],2)","v":"6/7/2006"},{"$f":"_xlfn.IFNA(VLOOKUP(G1, Asphalt_Paving[], MATCH(F9, Asphalt_Paving[#Headers],0), FALSE),\"N/A\")","v":"Effective"},{"$f":"_xlfn.IFNA(VLOOKUP(H1, Asphalt_Paving[], MATCH(F9, Asphalt_Paving[#Headers],0), FALSE),\"N/A\")","v":"Effective Similar Rule"},{"$f":"_xlfn.IFNA(VLOOKUP(I1, Asphalt_Paving[], MATCH(F9, Asphalt_Paving[#Headers],0), FALSE),\"N/A\")","v":"N/A"},{"$f":"_xlfn.IFNA(VLOOKUP(J1, Asphalt_Paving[], MATCH(F9, Asphalt_Paving[#Headers],0), FALSE),\"N/A\")","v":"Effective "},{"$f":"_xlfn.IFNA(VLOOKUP(K1, Asphalt_Paving[], MATCH(F9, Asphalt_Paving[#Headers],0), FALSE),\"N/A\")","v":"N/A"},{"$f":"_xlfn.IFNA(VLOOKUP(L1, Asphalt_Paving[], MATCH(F9, Asphalt_Paving[#Headers],0), FALSE),\"N/A\")","v":"N/A"},{"$f":"_xlfn.IFNA(VLOOKUP(M1, Asphalt_Paving[], MATCH(F9, Asphalt_Paving[#Headers],0), FALSE),\"N/A\")","v":"N/A"},{"$f":"_xlfn.IFNA(VLOOKUP(N1, Asphalt_Paving[], MATCH(F9, Asphalt_Paving[#Headers],0), FALSE),\"N/A\")","v":"Effective "},{"$f":"_xlfn.IFNA(VLOOKUP(O1, Asphalt_Paving[], MATCH(F9, Asphalt_Paving[#Headers],0), FALSE),\"N/A\")","v":"Effective"},{"$f":"_xlfn.IFNA(VLOOKUP(P1, Asphalt_Paving[], MATCH(F9, Asphalt_Paving[#Headers],0), FALSE),\"N/A\")","v":"N/A"},{"$f":"_xlfn.IFNA(VLOOKUP(Q1, Asphalt_Paving[], MATCH(F9, Asphalt_Paving[#Headers],0), FALSE),\"N/A\")","v":"Effective"},{"$f":"_xlfn.IFNA(VLOOKUP(R1, Asphalt_Paving[], MATCH(F9, Asphalt_Paving[#Headers],0), FALSE),\"N/A\")","v":"N/A"},{"$f":"_xlfn.IFNA(VLOOKUP(S1, Asphalt_Paving[], MATCH(F9, Asphalt_Paving[#Headers],0), FALSE),\"N/A\")","v":"N/A"}]
[null,null,null,null,"PFCs",{"$f":"INDEX(PFCs[#Headers],2)","v":"Phase I 2001"},{"$f":"_xlfn.IFNA(VLOOKUP(G1, PFCs[], MATCH(F10, PFCs[#Headers],0), FALSE),\"N/A\")","v":"Federal"},{"$f":"_xlfn.IFNA(VLOOKUP(H1, PFCs[], MATCH(F10, PFCs[#Headers],0), FALSE),\"N/A\")","v":"Federal"},{"$f":"_xlfn.IFNA(VLOOKUP(I1, PFCs[], MATCH(F10, PFCs[#Headers],0), FALSE),\"N/A\")","v":"Effective"},{"$f":"_xlfn.IFNA(VLOOKUP(J1, PFCs[], MATCH(F10, PFCs[#Headers],0), FALSE),\"N/A\")","v":"Federal"},{"$f":"_xlfn.IFNA(VLOOKUP(K1, PFCs[], MATCH(F10, PFCs[#Headers],0), FALSE),\"N/A\")","v":"Effective"},{"$f":"_xlfn.IFNA(VLOOKUP(L1, PFCs[], MATCH(F10, PFCs[#Headers],0), FALSE),\"N/A\")","v":"Federal"},{"$f":"_xlfn.IFNA(VLOOKUP(M1, PFCs[], MATCH(F10, PFCs[#Headers],0), FALSE),\"N/A\")","v":"Effective/ Federal"},{"$f":"_xlfn.IFNA(VLOOKUP(N1, PFCs[], MATCH(F10, PFCs[#Headers],0), FALSE),\"N/A\")","v":"Effective"},{"$f":"_xlfn.IFNA(VLOOKUP(O1, PFCs[], MATCH(F10, PFCs[#Headers],0), FALSE),\"N/A\")","v":"Effective"},{"$f":"_xlfn.IFNA(VLOOKUP(P1, PFCs[], MATCH(F10, PFCs[#Headers],0), FALSE),\"N/A\")","v":"Federal"},{"$f":"_xlfn.IFNA(VLOOKUP(Q1, PFCs[], MATCH(F10, PFCs[#Headers],0), FALSE),\"N/A\")","v":"Federal"},{"$f":"_xlfn.IFNA(VLOOKUP(R1, PFCs[], MATCH(F10, PFCs[#Headers],0), FALSE),\"N/A\")","v":"Federal"},{"$f":"_xlfn.IFNA(VLOOKUP(S1, PFCs[], MATCH(F10, PFCs[#Headers],0), FALSE),\"N/A\")","v":"Effective"}]
[null,null,null,null,null,{"$f":"INDEX(PFCs[#Headers],3)","v":"Phase II 2006"},{"$f":"_xlfn.IFNA(VLOOKUP(G1, PFCs[], MATCH(F11, PFCs[#Headers],0), FALSE),\"N/A\")","v":"Federal"},{"$f":"_xlfn.IFNA(VLOOKUP(H1, PFCs[], MATCH(F11, PFCs[#Headers],0), FALSE),\"N/A\")","v":"Federal"},{"$f":"_xlfn.IFNA(VLOOKUP(I1, PFCs[], MATCH(F11, PFCs[#Headers],0), FALSE),\"N/A\")","v":"Effective"},{"$f":"_xlfn.IFNA(VLOOKUP(J1, PFCs[], MATCH(F11, PFCs[#Headers],0), FALSE),\"N/A\")","v":"Federal"},{"$f":"_xlfn.IFNA(VLOOKUP(K1, PFCs[], MATCH(F11, PFCs[#Headers],0), FALSE),\"N/A\")","v":"Effective"},{"$f":"_xlfn.IFNA(VLOOKUP(L1, PFCs[], MATCH(F11, PFCs[#Headers],0), FALSE),\"N/A\")","v":"Federal"},{"$f":"_xlfn.IFNA(VLOOKUP(M1, PFCs[], MATCH(F11, PFCs[#Headers],0), FALSE),\"N/A\")","v":"Effective/ Federal"},{"$f":"_xlfn.IFNA(VLOOKUP(N1, PFCs[], MATCH(F11, PFCs[#Headers],0), FALSE),\"N/A\")","v":"Effective"},{"$f":"_xlfn.IFNA(VLOOKUP(O1, PFCs[], MATCH(F11, PFCs[#Headers],0), FALSE),\"N/A\")","v":"Effective"},{"$f":"_xlfn.IFNA(VLOOKUP(P1, PFCs[], MATCH(F11, PFCs[#Headers],0), FALSE),\"N/A\")","v":"Federal"},{"$f":"_xlfn.IFNA(VLOOKUP(Q1, PFCs[], MATCH(F11, PFCs[#Headers],0), FALSE),\"N/A\")","v":"Federal"},{"$f":"_xlfn.IFNA(VLOOKUP(R1, PFCs[], MATCH(F11, PFCs[#Headers],0), FALSE),\"N/A\")","v":"Federal"},{"$f":"_xlfn.IFNA(VLOOKUP(S1, PFCs[], MATCH(F11, PFCs[#Headers],0), FALSE),\"N/A\")","v":"Effective"}]
[null,null,null,null,"MERR",{"$f":"INDEX(MERR[#Headers],2)","v":"Phase I 2001"},{"$f":"_xlfn.IFNA(VLOOKUP(G1, MERR[], MATCH(F12, MERR[#Headers],0), FALSE),\"N/A\")","v":"Effective"},{"$f":"_xlfn.IFNA(VLOOKUP(H1, MERR[], MATCH(F12, MERR[#Headers],0), FALSE),\"N/A\")","v":"Effective"},{"$f":"_xlfn.IFNA(VLOOKUP(I1, MERR[], MATCH(F12, MERR[#Headers],0), FALSE),\"N/A\")","v":"Effective"},{"$f":"_xlfn.IFNA(VLOOKUP(J1, MERR[], MATCH(F12, MERR[#Headers],0), FALSE),\"N/A\")","v":"Effective"},{"$f":"_xlfn.IFNA(VLOOKUP(K1, MERR[], MATCH(F12, MERR[#Headers],0), FALSE),\"N/A\")","v":"Effective Similar Rule"},{"$f":"_xlfn.IFNA(VLOOKUP(L1, MERR[], MATCH(F12, MERR[#Headers],0), FALSE),\"N/A\")","v":"Effective Similar Rule"},{"$f":"_xlfn.IFNA(VLOOKUP(M1, MERR[], MATCH(F12, MERR[#Headers],0), FALSE),\"N/A\")","v":"Not enacted"},{"$f":"_xlfn.IFNA(VLOOKUP(N1, MERR[], MATCH(F12, MERR[#Headers],0), FALSE),\"N/A\")","v":"Effective"},{"$f":"_xlfn.IFNA(VLOOKUP(O1, MERR[], MATCH(F12, MERR[#Headers],0), FALSE),\"N/A\")","v":"Effective"},{"$f":"_xlfn.IFNA(VLOOKUP(P1, MERR[], MATCH(F12, MERR[#Headers],0), FALSE),\"N/A\")","v":"Effective"},{"$f":"_xlfn.IFNA(VLOOKUP(Q1, MERR[], MATCH(F12, MERR[#Headers],0), FALSE),\"N/A\")","v":"Effective Similar Rule"},{"$f":"_xlfn.IFNA(VLOOKUP(R1, MERR[], MATCH(F12, MERR[#Headers],0), FALSE),\"N/A\")","v":"Not enacted"},{"$f":"_xlfn.IFNA(VLOOKUP(S1, MERR[], MATCH(F12, MERR[#Headers],0), FALSE),\"N/A\")","v":"Effective"}]
[null,null,null,null,null,{"$f":"INDEX(MERR[#Headers],3)","v":"Phase II 2009/2011"},{"$f":"_xlfn.IFNA(VLOOKUP(G1, MERR[], MATCH(F13, MERR[#Headers],0), FALSE),\"N/A\")","v":"Not enacted"},{"$f":"_xlfn.IFNA(VLOOKUP(H1, MERR[], MATCH(F13, MERR[#Headers],0), FALSE),\"N/A\")","v":"Effective"},{"$f":"_xlfn.IFNA(VLOOKUP(I1, MERR[], MATCH(F13, MERR[#Headers],0), FALSE),\"N/A\")","v":"Effective"},{"$f":"_xlfn.IFNA(VLOOKUP(J1, MERR[], MATCH(F13, MERR[#Headers],0), FALSE),\"N/A\")","v":"Not enacted"},{"$f":"_xlfn.IFNA(VLOOKUP(K1, MERR[], MATCH(F13, MERR[#Headers],0), FALSE),\"N/A\")","v":"Effective"},{"$f":"_xlfn.IFNA(VLOOKUP(L1, MERR[], MATCH(F13, MERR[#Headers],0), FALSE),\"N/A\")","v":"Not enacted"},{"$f":"_xlfn.IFNA(VLOOKUP(M1, MERR[], MATCH(F13, MERR[#Headers],0), FALSE),\"N/A\")","v":"Not enacted"},{"$f":"_xlfn.IFNA(VLOOKUP(N1, MERR[], MATCH(F13, MERR[#Headers],0), FALSE),\"N/A\")","v":"Not enacted"},{"$f":"_xlfn.IFNA(VLOOKUP(O1, MERR[], MATCH(F13, MERR[#Headers],0), FALSE),\"N/A\")","v":"under development"},{"$f":"_xlfn.IFNA(VLOOKUP(P1, MERR[], MATCH(F13, MERR[#Headers],0), FALSE),\"N/A\")","v":"Not enacted"},{"$f":"_xlfn.IFNA(VLOOKUP(Q1, MERR[], MATCH(F13, MERR[#Headers],0), FALSE),\"N/A\")","v":"Effective Similar Rule"},{"$f":"_xlfn.IFNA(VLOOKUP(R1, MERR[], MATCH(F13, MERR[#Headers],0), FALSE),\"N/A\")","v":"Not enacted"},{"$f":"_xlfn.IFNA(VLOOKUP(S1, MERR[], MATCH(F13, MERR[#Headers],0), FALSE),\"N/A\")","v":"Not enacted"}]
[null,null,null,null,"Solvent Degreasing",{"$f":"INDEX(Solvent_Degreasing[#Headers],2)","v":"Phase I 2001"},{"$f":"_xlfn.IFNA(VLOOKUP(G1, Solvent_Degreasing[], MATCH(F14, Solvent_Degreasing[#Headers],0), FALSE),\"N/A\")","v":"Effective"},{"$f":"_xlfn.IFNA(VLOOKUP(H1, Solvent_Degreasing[], MATCH(F14, Solvent_Degreasing[#Headers],0), FALSE),\"N/A\")","v":"Effective"},{"$f":"_xlfn.IFNA(VLOOKUP(I1, Solvent_Degreasing[], MATCH(F14, Solvent_Degreasing[#Headers],0), FALSE),\"N/A\")","v":"Effective Similar Rule"},{"$f":"_xlfn.IFNA(VLOOKUP(J1, Solvent_Degreasing[], MATCH(F14, Solvent_Degreasing[#Headers],0), FALSE),\"N/A\")","v":"Effective"},{"$f":"_xlfn.IFNA(VLOOKUP(K1, Solvent_Degreasing[], MATCH(F14, Solvent_Degreasing[#Headers],0), FALSE),\"N/A\")","v":"Effective Similar Rule"},{"$f":"_xlfn.IFNA(VLOOKUP(L1, Solvent_Degreasing[], MATCH(F14, Solvent_Degreasing[#Headers],0), FALSE),\"N/A\")","v":"Effective"},{"$f":"_xlfn.IFNA(VLOOKUP(M1, Solvent_Degreasing[], MATCH(F14, Solvent_Degreasing[#Headers],0), FALSE),\"N/A\")","v":"Effective"},{"$f":"_xlfn.IFNA(VLOOKUP(N1, Solvent_Degreasing[], MATCH(F14, Solvent_Degreasing[#Headers],0), FALSE),\"N/A\")","v":"Effective"},{"$f":"_xlfn.IFNA(VLOOKUP(O1, Solvent_Degreasing[], MATCH(F14, Solvent_Degreasing[#Headers],0), FALSE),\"N/A\")","v":"Effective"},{"$f":"_xlfn.IFNA(VLOOKUP(P1, Solvent_Degreasing[], MATCH(F14, Solvent_Degreasing[#Headers],0), FALSE),\"N/A\")","v":"Effective"},{"$f":"_xlfn.IFNA(VLOOKUP(Q1, Solvent_Degreasing[], MATCH(F14, Solvent_Degreasing[#Headers],0), FALSE),\"N/A\")","v":"Effective Similar Rule"},{"$f":"_xlfn.IFNA(VLOOKUP(R1, Solvent_Degreasing[], MATCH(F14, Solvent_Degreasing[#Headers],0), FALSE),\"N/A\")","v":"Not enacted"},{"$f":"_xlfn.IFNA(VLOOKUP(S1, Solvent_Degreasing[], MATCH(F14, Solvent_Degreasing[#Headers],0), FALSE),\"N/A\")","v":"Effective"}]
[null,null,null,null,null,{"$f":"INDEX(Solvent_Degreasing[#Headers],3)","v":"Phase II 2012"},{"$f":"_xlfn.IFNA(VLOOKUP(G1, Solvent_Degreasing[], MATCH(F15, Solvent_Degreasing[#Headers],0), FALSE),\"N/A\")","v":"Not enacted"},{"$f":"_xlfn.IFNA(VLOOKUP(H1, Solvent_Degreasing[], MATCH(F15, Solvent_Degreasing[#Headers],0), FALSE),\"N/A\")","v":"Effective 8/11/21, Compliance Date 8/11/22"},{"$f":"_xlfn.IFNA(VLOOKUP(I1, Solvent_Degreasing[], MATCH(F15, Solvent_Degreasing[#Headers],0), FALSE),\"N/A\")","v":"Not enacted"},{"$f":"_xlfn.IFNA(VLOOKUP(J1, Solvent_Degreasing[], MATCH(F15, Solvent_Degreasing[#Headers],0), FALSE),\"N/A\")","v":"Not enacted"},{"$f":"_xlfn.IFNA(VLOOKUP(K1, Solvent_Degreasing[], MATCH(F15, Solvent_Degreasing[#Headers],0), FALSE),\"N/A\")","v":"Not enacted"},{"$f":"_xlfn.IFNA(VLOOKUP(L1, Solvent_Degreasing[], MATCH(F15, Solvent_Degreasing[#Headers],0), FALSE),\"N/A\")","v":"Not enacted"},{"$f":"_xlfn.IFNA(VLOOKUP(M1, Solvent_Degreasing[], MATCH(F15, Solvent_Degreasing[#Headers],0), FALSE),\"N/A\")","v":"Not enacted"},{"$f":"_xlfn.IFNA(VLOOKUP(N1, Solvent_Degreasing[], MATCH(F15, Solvent_Degreasing[#Headers],0), FALSE),\"N/A\")","v":"Not enacted"},{"$f":"_xlfn.IFNA(VLOOKUP(O1, Solvent_Degreasing[], MATCH(F15, Solvent_Degreasing[#Headers],0), FALSE),\"N/A\")","v":"Compliance Date 12/31/22"},{"$f":"_xlfn.IFNA(VLOOKUP(P1, Solvent_Degreasing[], MATCH(F15, Solvent_Degreasing[#Headers],0), FALSE),\"N/A\")","v":"Not enacted"},{"$f":"_xlfn.IFNA(VLOOKUP(Q1, Solvent_Degreasing[], MATCH(F15, Solvent_Degreasing[#Headers],0), FALSE),\"N/A\")","v":"Not enacted"},{"$f":"_xlfn.IFNA(VLOOKUP(R1, Solvent_Degreasing[], MATCH(F15, Solvent_Degreasing[#Headers],0), FALSE),\"N/A\")","v":"Not enacted"},{"$f":"_xlfn.IFNA(VLOOKUP(S1, Solvent_Degreasing[], MATCH(F15, Solvent_Degreasing[#Headers],0), FALSE),\"N/A\")","v":"Not enacted"}]
[null,null,null,null,"ICI Adhesives and Sealants",{"$f":"INDEX(ICI_Adhesives[#Headers],2)","v":"2006"},{"$f":"_xlfn.IFNA(VLOOKUP(G1, ICI_Adhesives[], MATCH(F16, ICI_Adhesives[#Headers],0), FALSE),\"N/A\")","v":"Effective"},{"$f":"_xlfn.IFNA(VLOOKUP(H1, ICI_Adhesives[], MATCH(F16, ICI_Adhesives[#Headers],0), FALSE),\"N/A\")","v":"Effective"},{"$f":"_xlfn.IFNA(VLOOKUP(I1, ICI_Adhesives[], MATCH(F16, ICI_Adhesives[#Headers],0), FALSE),\"N/A\")","v":"Effective"},{"$f":"_xlfn.IFNA(VLOOKUP(J1, ICI_Adhesives[], MATCH(F16, ICI_Adhesives[#Headers],0), FALSE),\"N/A\")","v":"Similar Rule Adopted: Prior to Model"},{"$f":"_xlfn.IFNA(VLOOKUP(K1, ICI_Adhesives[], MATCH(F16, ICI_Adhesives[#Headers],0), FALSE),\"N/A\")","v":"Effective"},{"$f":"_xlfn.IFNA(VLOOKUP(L1, ICI_Adhesives[], MATCH(F16, ICI_Adhesives[#Headers],0), FALSE),\"N/A\")","v":"Effective"},{"$f":"_xlfn.IFNA(VLOOKUP(M1, ICI_Adhesives[], MATCH(F16, ICI_Adhesives[#Headers],0), FALSE),\"N/A\")","v":"Not enacted"},{"$f":"_xlfn.IFNA(VLOOKUP(N1, ICI_Adhesives[], MATCH(F16, ICI_Adhesives[#Headers],0), FALSE),\"N/A\")","v":"Effective"},{"$f":"_xlfn.IFNA(VLOOKUP(O1, ICI_Adhesives[], MATCH(F16, ICI_Adhesives[#Headers],0), FALSE),\"N/A\")","v":"Effective"},{"$f":"_xlfn.IFNA(VLOOKUP(P1, ICI_Adhesives[], MATCH(F16, ICI_Adhesives[#Headers],0), FALSE),\"N/A\")","v":"Effective"},{"$f":"_xlfn.IFNA(VLOOKUP(Q1, ICI_Adhesives[], MATCH(F16, ICI_Adhesives[#Headers],0), FALSE),\"N/A\")","v":"Effective"},{"$f":"_xlfn.IFNA(VLOOKUP(R1, ICI_Adhesives[], MATCH(F16, ICI_Adhesives[#Headers],0), FALSE),\"N/A\")","v":"Effective"},{"$f":"_xlfn.IFNA(VLOOKUP(S1, ICI_Adhesives[], MATCH(F16, ICI_Adhesives[#Headers],0), FALSE),\"N/A\")","v":"Effective"}]
[null,null,null,null,"LAST",{"$f":"INDEX(LAST[#Headers],2)","v":"2010"},{"$f":"_xlfn.IFNA(VLOOKUP(G1, LAST[], MATCH(F17, LAST[#Headers],0), FALSE),\"N/A\")","v":"Effective"},{"$f":"_xlfn.IFNA(VLOOKUP(H1, LAST[], MATCH(F17, LAST[#Headers],0), FALSE),\"N/A\")","v":"Not enacted"},{"$f":"_xlfn.IFNA(VLOOKUP(I1, LAST[], MATCH(F17, LAST[#Headers],0), FALSE),\"N/A\")","v":"N/A"},{"$f":"_xlfn.IFNA(VLOOKUP(J1, LAST[], MATCH(F17, LAST[#Headers],0), FALSE),\"N/A\")","v":"Not enacted"},{"$f":"_xlfn.IFNA(VLOOKUP(K1, LAST[], MATCH(F17, LAST[#Headers],0), FALSE),\"N/A\")","v":"Not enacted"},{"$f":"_xlfn.IFNA(VLOOKUP(L1, LAST[], MATCH(F17, LAST[#Headers],0), FALSE),\"N/A\")","v":"Not enacted"},{"$f":"_xlfn.IFNA(VLOOKUP(M1, LAST[], MATCH(F17, LAST[#Headers],0), FALSE),\"N/A\")","v":"Not enacted"},{"$f":"_xlfn.IFNA(VLOOKUP(N1, LAST[], MATCH(F17, LAST[#Headers],0), FALSE),\"N/A\")","v":"Effective"},{"$f":"_xlfn.IFNA(VLOOKUP(O1, LAST[], MATCH(F17, LAST[#Headers],0), FALSE),\"N/A\")","v":"Not enacted"},{"$f":"_xlfn.IFNA(VLOOKUP(P1, LAST[], MATCH(F17, LAST[#Headers],0), FALSE),\"N/A\")","v":"Effective"},{"$f":"_xlfn.IFNA(VLOOKUP(Q1, LAST[], MATCH(F17, LAST[#Headers],0), FALSE),\"N/A\")","v":"Not enacted"},{"$f":"_xlfn.IFNA(VLOOKUP(R1, LAST[], MATCH(F17, LAST[#Headers],0), FALSE),\"N/A\")","v":"equivalent permit limits"},{"$f":"_xlfn.IFNA(VLOOKUP(S1, LAST[], MATCH(F17, LAST[#Headers],0), FALSE),\"N/A\")","v":"Not enacted"}]

{"sheet":"RACT summary","index":3,"n_rows":23,"n_cols":16,"rows_kept":23,"cut":false,"hidden":false,"merged":[[6,15,7,15],[17,0,19,0],[17,5,17,13],[0,0,0,5],[2,0,2,5],[4,0,4,1],[6,5,6,13],[6,14,7,14]]}
["State NOx RACT Rules Summary"]
["updated 3_2023"]
[]
["Link to Instructions",null,null,"updated March 27, 2023"]
[]
[]
["State","RACT SIP","RACT SIP","RACT SIP","RACT SIP","NOx RACT Rules",null,null,null,null,null,null,null,null,"New Small Natural Gas Boilers (ULNB)","State Contacts and Links to Rules"]
[null,"Ozone RACT  SIP Submittal Status","EPA Approval Status","Ozone RACT  SIP Submittal Status","EPA Approval Status","Oil & Gas Boilers Serving EGUs","HEDD Combustion Turbines","Stationary Generators (Engines)","ICI Boilers","Municipal Waste Combustors","Asphalt Production Plants","Cement Kilns","Glass Furnaces","Natural Gas Pipelines (NOx)"]
["CT","2008 NAAQS initial designation:  SIP submitted on July 18, 2014.     Associated RACT rules submitted on January 24, 2017 (RCSA section 22a-174-22e) and September 16, 2016 (RCSA section 22a-174-38).","Approved.  82 FR 35454 (07/31/2017).","2008 NAAQS reclassification to serious and initial designations for the 2015 ozone NAAQS: SIP submitted on 21 December 2020.","Approval proposed 87 FR 17052 (03/25/2022)."," RCSA section 22a-174-22e."," RCSA section 22a-174-22e."," RCSA section 22a-174-22e."," RCSA section 22a-174-22e."," RCSA section 22a-174-38."," RCSA section 22a-174-22e.","NA","NA","  RCSA section 22a-174-22e.   Note:  Does not specifically apply to \"natural gas pipelines,\" but fuel-burning equipment such as compressors is regulated.  ","No action","Merrily.gere@ct.gov          https://eregulations.ct.gov/eRegsPortal/Browse/RCSA/Title_22aSubtitle_22a-174Section_22a-174-22e/  (Section 22a-174-22e)\nhttps://eregulations.ct.gov/eRegsPortal/Browse/RCSA/Title_22aSubtitle_22a-174Section_22a-174-38/ (RCSA section 22a-174-38)\n"]
["DC","Submitted 2015 Ozone NAAQS RACT SIP to EPA, DC's RACT level refect presumptive RACT as submitted. ","Not yet approved."," "," ","N/A","20 DCMR 805","20 DCMR 805","20 DCMR 805","N/A","20 DCMR 805","N/A","N/A","N/A","No action","Joseph Jakuta, 202 669-5817, joseph.jakuta@dc.gov"]
["DE","Submitted RACT SIP",null,null,null,"7 DE Admin Code 1112, Control of Nitrogen Oxides Emissions   and 7 DE Admin Code 1146, Electric Generating Unit (EGU) Multi-Pollutant Regulation","7 DE Admin Code 1112, Control of Nitrogen Oxides Emissions   and 7 DE Admin Code 1148, Control of Stationary Combustion Turbine Electric Generating Unit Emissions","7 DE Admin Code 1112, Control of Nitrogen Oxides Emissions   and 7 DE Admin Code 1144, Control of Stationary Generator Emissions","7 DE Admin Code 1112, Control of Nitrogen Oxides Emissions   and 7 DE Admin Code 1142, Specific Emission Control Requirements","No sources in state",null,null,null,null,"This model rule has not been adopted into a regulation yet.  Source specific RACT requirements apply at applicable facilities"," http://regulations.delaware.gov/AdminCode/title7/1000/1100/1112.shtml  http://regulations.delaware.gov/AdminCode/title7/1000/1100/1144.shtml http://regulations.delaware.gov/AdminCode/title7/1000/1100/1146.shtml http://regulations.delware.gov/AdminCode/title7/1000/1100/1148.shtml                     \nRobert Clausen  robert.clausen@delaware.gov 302-739-9402"]
["MA","Submitted 10/18/2018, revised 05/28/2020, with respect to 2008 and 2015 ozone NAAQS.","Approved.  85 FR 65236 (10/15/2020)."," "," ","310 CMR 7.19","310 CMR 7.19","310 CMR 7.19","310 CMR 7.19","310 CMR 7.08(2), 310 CMR 7.19(9)"," "," "," "," "," ","Marc.cohen@mass.gov; https://www.mass.gov/regulations/310-CMR-700-air-pollution-control"]
["MD","State of Maryland 0.070 ppm 8-Hour Ozone RACT SIP: Submitted 8/10/2020",null,null,null,"COMAR 26.11.09.08 B & C Boiler NOx rates. Coal EGU RACT - COMAR 26.11.09.08 B, C, D & E + 26.11.27 HAA NOx CAP and 26.11.38.03 & .05 NOx from Coal-EGU","COMAR 26.11.09.08 G Greater than 15% capacity and less than 15% capacity","40 CFR Part 63 Subpart ZZZZ; 40 CFR Subpart IIII or JJJJ","COMAR 26.11.09.08 B, C, D & E","Small MWCs subject to 40 CFR 62 Subpart JJJ. Large MWCs subject to COMAR 26.11.08.10","No RACT sources","COMAR 26.11.30","COMAR 26.11.09.08I - No RACT Sources","COMAR 26.11.29","TBD","Randy Mosier     (410) 537-4488      Randy.Mosier@maryland.gov\nhttps://2019-dsd.maryland.gov/Pages/COMARHome.aspx                                             \nSearch Title 26, Chapter 11"]
["ME",null,null,null,null,"06-096 C.M.R. ch. 138","06-096 C.M.R. ch. 138",null,"06-096 C.M.R. ch. 138","06-096 C.M.R. ch. 138",null,null,"NA",null,"None","Jeff Crawford (207) 287-7647   jeff.s.crawford@maine.gov    htts://www.maine.gov/dep/air/rules/index.html"]
["NH","Submitted: 9/6/2018","Pending",null,null,"Env-A 1303","Env-A 1306.04","Env-A 1307","Env-A 1305","Env-A 1309","Env-A 1308","None in NH","None in NH","N/A","N/A","Cathy A. Beahm  catherine.a.beahm@des.nh.gov  (603) 271-6793"]
["NJ","Submitted 6/2015","EPA approved (83 FR 50506, October 9, 2018)","For 2015 8-hour ozone standard, NJ submitted SIP/Re-certification of current RACT rules on 11/18/2021. https://www.state.nj.us/dep/baqp/sip/OA.html","For 2015 8-hour ozone, awaiting EPA approval of NJ's 11/18/2021 submittal","N.J.A.C. 7:27 19.4","N.J.A.C. 7:27 19.5","N.J.A.C. 7:27 19.8","N.J.A.C. 7:27 19.7","N.J.A.C. 7:27 19.12","N.J.A.C. 7:27 19.9","NA","N.J.A.C. 7:27 19.10","N.J.A.C. 7:27-19.5(l) and 19.8(g) and (h)","No Action","Ketan Bhandutia (609)984-6356  Ketan.Bhandutia@dep.nj.gov http://www.state.nj.us/dep/aqm/Sub19.pdf  "]
["NY","1997: Submitted: 9/1/2006;  2008: Submitted: 12/22/2014","1997:  Approved (conditional): 7/23/1010; 2008: Pending",null,null,"Subpart 227-2, Effective: 7/8/2010, Submitted: 8/19/2010, Final:  77 FR 13974, 78 Fr 41846","Under Development","Part 222, In Progress","Subpart 227-2, Effective: 7/8/2010, Submitted: 8/19/2010, Final:  77 FR 13974, 78 Fr 41846","Part 219, Effective 12/31/1988 ",null,"Subpart 220-1 - Effective: 7/11/2010 Submitted: 8/19/2010; Final: 77 FR 13974, 78 Fr 41846","Subpart 220-2 - Effective: 7/11/2010 Submitted: 8/19/2010; Final: 77 FR 13974, 78 Fr 41846","Covered under NOx RACT Rule (Subpart 227-2) Effective: 7/8/2010, Submitted: 8/19/2010, Final:  77 FR 13974, 78 Fr 41846","Not Started","Mike Jennings, mike.jennings@dec.ny.gov                                               Robert Bielawa, robert.bielawa@dec.ny.gov                          www.dec.ny.gov/regs/2492.html"]
["PA","1997 & 2008   8-Hour RACT SIP","1997 & 2008   8-Hour RACT SIP","1-Hour RACT SIP","1-Hour RACT SIP","NOx RACT Rules for 1997 & 2008   8-Hour RACT SIP"]
[null,null,null,null,null,"PA's RACT Rule covers  O & G Boilers","PA's RACT Rule covers  Combustion Turbines"]
[null,"Additional RACT Requirements for Major Sources of NOx and VOCs. Sections 129.96 - 129.100. Control of NOX from Major Sources of NOx and VOC . Effective April 23, 2016. The Pennsylvania Bulletin Notice citation is 46 PaB 2036. 80616 Federal Register / Vol. 85, No. 240 / Monday, December 14, 2020","To be determined. The RACT II SIP revision will be submitted to EPA in May 2016. ","STATIONARY SOURCES OF NOx AND VOCs. Sections 129.91 - 129.95. Effective January 15, 1994. 3/23/1998   63 Federal Register 13789 & 6/16/2006 71 Federal Register 34864 ","Final Approval 6/16/2006 71 Federal Register 34864 ","Additional RACT Requirements for Major Sources of NOx and VOCs. Sections 129.96 - 129.100. Control of NOX from Major Sources of NOx and VOC . Effective April 23, 2016. 80616 Federal Register / Vol. 85, No. 240 / Monday, December 14, 2020","Additional RACT Requirements for Major Sources of NOx and VOCs. Sections 129.96 - 129.100. Control of NOX from Major Sources of NOx and VOC. Effective April 23, 2016. 80616 Federal Register / Vol. 85, No. 240 / Monday, December 14, 2020","Additional RACT Requirements for Major Sources of NOx and VOCs. Sections 129.96 - 129.100. Control of NOX from Major Sources of NOx and VOC . Effective April 23, 2016. 80616 Federal Register / Vol. 85, No. 240 / Monday, December 14, 2020","Additional RACT Requirements for Major Sources of NOx and VOCs. Sections 129.96 - 129.100. Control of NOX from Major Sources of NOx and VOC . Effective April 23, 2016. 80616 Federal Register / Vol. 85, No. 240 / Monday, December 14, 2020","Additional RACT Requirements for Major Sources of NOx and VOCs. Sections 129.96 - 129.100. Control of NOX from Major Sources of NOx and VOC . Effective April 23, 2016. 80616 Federal Register / Vol. 85, No. 240 / Monday, December 14, 2020","Additional RACT Requirements for Major Sources of NOx and VOCs. Sections 129.96 - 129.100. Control of NOX from Major Sources of NOx and VOC . Effective  April 23, 2016. 80616 Federal Register / Vol. 85, No. 240 / Monday, December 14, 2020","Additional RACT Requirements for Major Sources of NOx and VOCs. Sections 129.96 - 129.100. Control of NOX from Major Sources of NOx and VOC . Effective April 23, 2016. 80616 Federal Register / Vol. 85, No. 240 / Monday, December 14, 2020","Control of NOx Emissions From Glass Melting Furnaces. Sections 129.301 - 129.310. The rule  limits the emissions of NOx from glass melting furnaces on an annual basis. Effective  September 21, 2011. 08/22/2011                 76 Federal Register 52283","Additional RACT Requirements for Major Sources of NOx and VOCs. Sections 129.96 - 129.100. Control of NOX from Major Sources of NOx and VOC. Effective April 23, 2016.80616 Federal Register / Vol. 85, No. 240 / Monday, December 14, 2020","None","Susan Hoyle   shoyle@pa.gov \nRandy  Bordner   ranbordner@pa.gov \nSusan Foster   sufoster@pa.gov \nSean Wenrich   sewenrich@pa.gov \n\nhttp://www.pacode.com/secure/data/025/articleICIII_toc.html \n"]
["RI","2008 and 2015 O3 RACT SIP submittted 9/20/2019","EPA approved 9/3/2020"," "," ","Nox RACT 250-RICR-120-05-27","N/A","NOx RACT 250-RICR-120-05-27 or GPEG for Smaller-Scale Electric Generation Facilities 250-RICR-120-05-43","Nox RACT 250-RICR-120-05-27","n/a","Nox RACT 250-RICR-120-05-27","n/a","n/a","One Source Specific RACT"," ","karen.slattery@dem.ri.gov, https://dem.ri.gov/online-services/rules-regulations"]
["VA","1997 RACT SIP submitted on 10/23/2006 and 4/21/2008. 2008 RACT SIP submitted on 4/2/2020.  2015 RACT SIP in development.","1997 ozone RACT SIP approved 12/22/2008, 73 FR 78192 and 6/16/2009, 74 FR 28444.  2008 RACT SIP on hold due to SSM issues."," "," ","Virginia uses source specific RACT requirements for these units.","Virginia uses source specific RACT requirements for these units.","Virginia uses source specific RACT requirements for these units.","Virginia uses source specific RACT requirements for these units.","Virginia uses source specific RACT requirements for these units.","No major stationary sources in the VA OTR.","No major stationary sources in the VA OTR.","No major stationary sources in the VA OTR.","Virginia uses source specific RACT requirements for these units.","Virginia uses source specific RACT requirements for these units when they are located at RACT-applicable facilities","Doris McLeod, Air Quality Planner, 804-659-1990 doris.mcleod@deq.virginia.gov"]
["VT","1997 RACT SIP Submitted;  2008 & 2015 RACT SIP was submitted on 9/6/2018","1997 RACT SIP Approved 2011;  2008 & 2015 RACT SIP was approved 11/26/2019",null,null,"No action to date","No action to date","VT Regulation 5-271","No action to date","No action to date","equivalent limitations in permit","No sources in VT","No sources in VT","No sources in VT","No action to date","Jay Hollingsworth, 802 272-3006, Jay.Hollingsworth@vermont.gov"]

{"sheet":"Boilers_Coal","index":4,"n_rows":21,"n_cols":11,"rows_kept":21,"cut":false,"hidden":false,"merged":[[5,10,6,10],[6,2,6,3],[6,4,6,5],[6,6,6,7],[5,0,7,0],[5,1,7,1],[5,8,7,8],[5,9,7,9],[5,2,5,7]]}
[]
["Summary Table: Coal-fired Boilers"]
["Ranges shown are for firing type (wall, tangential, etc.)","updated March 27, 2023"]
[]
[]
["State","Geographic Area","NOx Limits and Averaging Periods",null,null,null,null,null," RACT REGULATIONS","State Contacts","Comments"]
[null,null,"Boilers 50-100 mmBtu/hr",null,"Boilers 100 - 250 mmBtu/hr",null,"Boilers >250 mmBtu/hr"]
[null,null,"NOx limit","Averaging Period","NOx limit","Averaging Period","NOx limit","Averaging Period",null,null,"LEA = Low Excess Air; FGR = Flue Gas Recirculation; LNB = Low Nox Burner;"]
["CT","Statewide "," 0.28 lb/MMBtu (Through May 30, 2023),  0.12 lb/MMBtu (Beginning June 1, 2023).  Ozone season and non-ozone season limits also apply.  ","Daily block average."," 0.28 lb/MMBtu (Through May 30, 2023),  0.12 lb/MMBtu (Beginning June 1, 2023).  Ozone season and non-ozone season limits also apply.  ","Daily block average."," 0.28 lb/MMBtu (Through May 30, 2023),  0.12 lb/MMBtu (Beginning June 1, 2023).  Ozone season and non-ozone season limits also apply. ","Daily block average."," RCSA section 22a-174-22e https://eregulations.ct.gov/eRegsPortal/Browse/RCSA?id=Title%2022a|22a-174|22a-174-22e|22a-174-22e","Merrily Gere, 860 424 3416,\nMerrily.Gere@ct.gov","The information in this table is a summary.  Read the regulation for correct information for specific scenarios.  "]
["DC","District-wide",0.12,"calendar day average",0.12,"calendar day average",0.12,"calendar day average","20 DCMR § 805.5, RACT for Major Stationary Sources of Oxides of Nitrogen: http://www.dcregs.dc.gov/Gateway/RuleHome.aspx?RuleNumber=20-805;\n20 DCMR § 801, includes a ban on No. 5 fuel oil and heavier as of July 1, 2016:\nhttp://www.dcregs.dc.gov/Gateway/RuleHome.aspx?RuleNumber=20-801","Joseph Jakuta, 202 669-5817, joseph.jakuta@dc.gov "]
["DE","Statewide","LEA, Low NOx, FGR","24-hr",0.38,"24-hr",0.38,"24-hr","7 DE Admin Code 1112, Control of Nitrogen Oxides Emissions: http://regulations.delaware.gov/AdminCode/title7/1000/1100/1112.shtml\n","Robert Clausen robert.clausen@delaware.gov\n302-739-9402"]
["MA","Statewide",0.43,"1 hr",0.12,"1 hr",0.12,"24 hr","310 CMR 7.19(4)(b)","Marc Cohen  857-256-4027 \nMarc.Cohen@mass.gov","No coal only fired boilers in MA"]
["MD","Select counties","0.38 to 1.0 depending on boiler type","30 day rolling",0.65,"30 day rolling average","0.45 to 0.8 depending on boiler type","30 day rolling average","COMAR 26.11.09.08 B, C, D, E\nhttps://2019-dsd.maryland.gov/regulations/Pages/26.11.09.08.aspx","Randy Mosier, 410 537 4488,\nRandy.Mosier@maryland.gov;","Ozone season requirement is 0.15 lb/MMBTu @ 30 day average, daily or 24 hour optimization based on unit type (from COMAR 26.11.38). The owner or operator of an affected electric generating unit equipped with a fluidized bed combustor shall not exceed a NOx 24-hr block average emission rate of 0.10 lbs/MMBtu "]
["ME","Statewide","0.38 (firing biomass and coal)","1-hr avg","0.38 (firing biomass and coal)","1-hr avg","0.38 (firing biomass and coal)","1-hr avg","Reasonably Available Control Technology For Facilities that Emit Nitrogen Oxides (NOx-RACT), 06-096 C.M.R. ch. 138: http://www.maine.gov/dep/air/rules/index.html","Jeff Crawford, (207) 287-7647, jeff.s.crawford@maine.gov","no coal-only fired boilers in ME"]
["NH","Statewide ","0.30 to 0.50 depending on boiler type","24-hr calendar day avg","0.30 to 1.0 depending on boiler type","24-hr calendar day avg","0.30 to 1.0 depending on boiler type OR Source Specific RACT Order","24-hr calendar day avg","NH Administrative Rule Env-A 1300 NOx RACT https://www.des.nh.gov/sites/g/files/ehbemt341/files/documents/2020-01/Env-A%201300.pdf Parts Env-A 1303 through Env-A 1305","Cathy A. Beahm\ncatherine.a.beahm@des.nh.gov\n(603) 271-6793\n","Parts Env-A 1303-1305 "]
["NJ","Statewide","no limit","not applicable","no limit","not applicable","1.50 Lb/MWH ","With CEM-Each calendar day during ozone season.  30-day during non-ozone season.","N.J.A.C. 7:27 19.4 (a), Table-3 available at https://www.nj.gov/dep/aqm/currentrules/Sub19.pdf","Ketan.Bhandutia@dep.nj.gov/ David.Owen@dep.nj.gov  \n","CEMs required per N.J.A.C. 7:27-19.4(b). New Jersey presumptive NOx RACT limits for boilers serving EGUs are out put based limits effective 5/1/2015. The RACT rule sets maximum allowable emission rate of 1.50 pounds per megawatt-hour (Lb/MWH) for coal combustion. This output-based emission rate is based on a heat rate of 10,000 British thermal unit per kilowatt hour (BTU/KWH) and input based emission limit of 0.15 pound per million (Lb/MMBTU) for coal. "]
["NY","Statewide","No limits","not applicable","0.08 to 0.20  lbs/MMBtu","With CEM - 24 hour ozone season/ 30 day non-ozone season wo/CEM - 1-hour","0.08 to 0.20 lbs/MMBtu","With CEM - 24 hour ozone season/ 30 day non-ozone season wo/CEM - 1-hour","Subpart 227-2, Effective: 7/8/2010, Submitted: 8/19/2010, Final:  77 FR 13974, 78 Fr 41846; https://www.federalregister.gov/articles/2013/07/12/2013-16493/approval-and-promulgation-of-implementation-plans-new-york-state-ozone-implementation-plan-revision","Mike Jennings, mike.jennings@dec.ny.gov; Robert Bielawa, robert.bielawa@dec.ny.gov;"]
["PA","Statewide","0.45 lbs/MMBtu","Daily, if CEMS","0.45 lbs/MMBtu","Daily, if CEMS. ","Boilers (Case-by-case); CFB (0.16 lbs/MMBtu)","Boilers (Case-by-case); CFB (Daily, if CEMS)","PROPOSED - Additional RACT Requirements for Major Sources of NOx and VOCs for the 2015 Ozone NAAQS Sections 129.111 - 129.115. Additional RACT Requirements for Major Sources of NOx and VOCs. ","Susan Hoyle, shoyle@pa.gov;\nRandy Bordner, ranbordner@pa.gov;\nSusan Foster, sufoster@pa.gov;\nSean Wenrich, sewenrich@pa.gov;"," "]
["RI","Statewide","no limit","not applicable","no limit","not applicable","no limit","not applicable","Air Pollution Control Regulation Number 27, Control of Nitrogen Oxide Emissions","Karen Slattery, karen.slattery@dem.ri.gov","No Coal-Fired Boilers in RI"]
["VA","OTR Jurisdiction","0.38 - 1.0",null,"0.38 - 1.00",null,"0.38 - 1.00",null,"9 VAC 5 Chapter 40 Article 51; http://www.deq.virginia.gov/Portals/0/DEQ/Air/Regulations/451.pdf","Doris McLeod 804-698-4197\ndoris.mcleod@deq.virginia.gov","No coal fired boilers in the OTR portion of VA located at major stationary sources."]
["VT","Statewide","Not applicable","Not applicable","Not applicable","Not applicable","0.7 lb/MMBtu",null,"VAPCR Section 5-251(1)(c)","Jay Hollingsworth, 802 272-3006, Jay.Hollingsworth@vermont.gov","No Coal-Fired Boilers in VT"]

{"sheet":"Boilers_Nat_Gas","index":5,"n_rows":21,"n_cols":11,"rows_kept":21,"cut":false,"hidden":false,"merged":[[5,0,7,0],[5,1,7,1],[5,8,7,8],[5,9,7,9],[5,10,6,10],[6,2,6,3],[6,4,6,5],[6,6,6,7],[5,2,5,7]]}
[]
["Summary Table: Natural Gas-fired Boilers"]
["Ranges shown are for firing type (wall, tangential, etc.)"]
[null,"updated March 27, 2023"]
[]
["State","Geographic Area","NOx Limits and Averaging Periods",null,null,null,null,null," RACT REGULATIONS","State Contacts","Comments"]
[null,null,"Boilers 50-100 mmBtu/hr",null,"Boilers 100 - 250 mmBtu/hr",null,"Boilers >250 mmBtu/hr"]
[null,null,"NOx limit","Averaging Period","NOx limit","Averaging Period","NOx limit","Averaging Period",null,null,"LEA = Low Excess Air; FGR = Flue Gas Recirculation; LNB = Low Nox Burner;"]
["CT","Statewide "," 0.20-0.30  (Through May 30, 2023); 0.05 - 0.10 (Beginning June 1, 2023).  Ozone season and non-ozone season limits also apply.","Daily block average"," 0.10 - 0.30 (Through May 30, 2023); 0.10 (Beginning June 1, 2023).  Ozone season and non-ozone season limits also apply.  ","Daily block average","0.10 - 0.30 (Through May 30, 2023); 0.10 (Beginning June 1, 2023).  Ozone season and non-ozone season limits also apply. ","Daily block average"," RCSA section 22a-174-22e.  https://eregulations.ct.gov/eRegsPortal/Browse/RCSA?id=Title%2022a|22a-174|22a-174-22e|22a-174-22e","Merrily Gere, 860 424 3416,\nMerrily.Gere@ct.gov","The information in this table is a summary.   Read the regulation for correct information for specific scenarios."]
["DC","District-wide",0.05,"calendar day average",0.05,"calendar day average",0.05,"calendar day average","20 DCMR § 805.5, RACT for Major Stationary Sources of Oxides of Nitrogen: http://www.dcregs.dc.gov/Gateway/RuleHome.aspx?RuleNumber=20-805;\n20 DCMR § 801, includes a ban on No. 5 fuel oil and heavier as of July 1, 2016:\nhttp://www.dcregs.dc.gov/Gateway/RuleHome.aspx?RuleNumber=20-801","Joseph Jakuta, 202 669-5817, joseph.jakuta@dc.gov "]
["DE","Statewide","LEA, low NOx, FGR","24-hr",0.2,"24-hr",0.2,"24-hr","7 DE Admin Code 1112, Control of Nitrogen Oxides Emissions: http://regulations.delaware.gov/AdminCode/title7/1000/1100/1112.shtml\n","Robert Clausen robert.clausen@delaware.gov\n302-739-9402"]
["MA","Statewide",0.1,"1-hour","0.6 gas only    / 0.15 gas & oil","1-hour","0.08 gas only O.15 oil","24-hour","310 CMR 7.19","Marc Cohen; Marc.cohen@mass.gov 857-256-4027"," "]
["MD","Statewide ","Tune-up","not applicable",0.2,"30 day rolling average",0.2,"30 day rolling average","COMAR 26.11.09.08 B\nhttps://2019-dsd.maryland.gov/regulations/Pages/26.11.09.08.aspx","Randy Mosier, 410 537 4488,\nRandy.Mosier@maryland.gov"]
["ME","Statewide","Tune-up (20-50 MMBtu/hr)","not applicable","no limit","not applicable","no limit","not applicable","Reasonably Available Control Technology For Facilities that Emit Nitrogen Oxides (NOx-RACT), 06-096 C.M.R. ch. 138: http://www.maine.gov/dep/air/rules/index.html ","Jeff Crawford, (207) 287-7647, jeff.s.crawford@maine.gov "]
["NH","Statewide ","0.10 to 0.20","24-hr calendar day avg (if CEM is used) or 1-hr avg verified through stack test","0.10 to 0.25","24-hr calendar day avg (if CEM is used) or 1-hr avg verified through stack test","0.10 to 0.25","24-hr calendar day avg (if CEM is used) or 1-hr avg verified through stack test","NH Administrative Rule Env-A 1300 NOx RACT http://des.nh.gov/organization/commissioner/legal/rules/documents/env-a1300.pdf Parts Env-A 1303 through Env-A 1305","Cathy A. Beahm\ncatherine.a.beahm@des.nh.gov\n(603) 271-6793\n"]
["NJ","Statewide","0.05 Lb/MMBTU                (25 to 100 MMBTU/Hr boilers)","1-hour. Daily-if CEM","0.1 Lb/MMBTU                ","1-hour. Daily-if CEM","1.0 Lb/MWH (0.10 Lb/MMBTU) (boilers serving EGU)","Calendar day w/CEM","N.J.A.C. 7:27 19.7(i), Table 9 and N.J.A.C. 7:27-19.4, Table 3 ","Ketan Bhandutia 609-984-6356\nKetan.Bhandutia@dep.nj.gov","CEM is required for boilers serving EGU per 7:27-19.4(b)"]
["NY","Statewide","gas only:  0.05                        gas/distillate boilers: 0.08  gas/residual boilers: 0.20 ","With CEM - 24 hour ozone season/ 30 day non-ozone season wo/CEM - 1-hour","gas only: 0.06                     gas/oil boilers: 0.20","With CEM - 24 hour ozone season/ 30 day non-ozone season wo/CEM - 1-hour","gas only: 0.08                     gas/oil boilers: 0.20","With CEM - 24 hour ozone season/ 30 day non-ozone season ","Subpart 227-2, Effective: 7/8/2010, Submitted: 8/19/2010, Final:  77 FR 13974, 78 Fr 41846; https://www.federalregister.gov/articles/2013/07/12/2013-16493/approval-and-promulgation-of-implementation-plans-new-york-state-ozone-implementation-plan-revision","Mike Jennings, mike.jennings@dec.ny.gov; Robert Bielawa, robert.bielawa@dec.ny.gov;"]
["PA","Statewide","0.1 lb/MMBtu","Daily, if CEMS","0.1 Lb/MMBTU                ","Daily, if CEMS","0.1 lb/MMBtu","Daily, if CEMS","PROPOSED - Additional RACT Requirements for Major Sources of NOx and VOCs for the 2015 Ozone NAAQS Sections 129.111 - 129.115. Additional RACT Requirements for Major Sources of NOx and VOCs. ","Susan Hoyle, shoyle@pa.gov;\nRandy Bordner, ranbordner@pa.gov;\nSusan Foster, sufoster@pa.gov;\nSean Wenrich, sewenrich@pa.gov;"," "]
["RI","Statewide",0.1,"instantaneous",0.1,"see previous","0.2 (utility boiler)","see previous","Air Pollution Control Regulation Number 27, Control of Nitrogen Oxide Emissions","Karen Slattery, karen.slattery@dem.ri.gov"]
["VA","OTR Jurisdiction",0.2,null,0.2,null,0.2,null,"9 VAC 5 Chapter 40 Article 51; http://www.deq.virginia.gov/Portals/0/DEQ/Air/Regulations/451.pdf","Doris McLeod 804-698-4197\ndoris.mcleod@deq.virginia.gov","Unit specific emission rates included in RACT submission."]
["VT","Statewide","No limits","No limits","No limits","No limits",0.2,null,"No action to date; http://dec.vermont.gov/air-quality/laws","Jay Hollingsworth, 802 272-3006, Jay.Hollingsworth@vermont.gov;"]

{"sheet":"Boilers_Oil","index":6,"n_rows":21,"n_cols":12,"rows_kept":21,"cut":false,"hidden":false,"merged":[[5,10,6,10],[6,2,6,3],[6,4,6,5],[6,6,6,7],[5,0,7,0],[5,1,7,1],[5,2,5,7],[5,8,7,8],[5,9,7,9]]}
[]
["Summary Table: Oil-fired Boilers"]
["Ranges shown are for firing type (wall, tangential, etc.)"]
[null,"updated March 27, 2023"]
[]
["State","Geographic Area","NOx Limits and Averaging Periods",null,null,null,null,null," RACT REGULATIONS","State Contacts","Comments"]
[null,null,"Boilers 50-100 mmBtu/hr",null,"Boilers 100 - 250 mmBtu/hr",null,"Boilers >250 mmBtu/hr"]
[null,null,"NOx limit","Averaging Period","NOx limit","Averaging Period","NOx limit","Averaging Period",null,null,"LEA = Low Excess Air; FGR = Flue Gas Recirculation; LNB = Low Nox Burner;"]
["CT","Statewide","Distillate \n0.20 - 0.43 (Through May 30, 2023).\n0.10 (Beginning June 1, 2023).\nResidual \n0.25 - 0.43 (Through May 30, 2023).\n0.20 (Beginning June 1, 2023).  ","Daily block average.","Distillate   \n0.10 - 0.43 (Through May 30, 2023).\n0.10 - 0.15 (Beginning June 1, 2023).           Residual \n0.15 - 0.43 (Through May 30, 2023). \n0.15 - 0.20 (Beginning June 1, 2023).","Daily block average.","Distillate  \n0.10 - 0.43 (Through May 30, 2023). \n0.10 - 0.15 (Beginning June 1, 2023).\nResidual  \n0.15 - 0.43 (Through May 30, 2023). \n0.15 - 0.20 (Beginning June 1, 2023).  ","Daily block average. "," RCSA section 22a-174-22e https://eregulations.ct.gov/eRegsPortal/Browse/RCSA?id=Title%2022a|22a-174|22a-174-22e|22a-174-22e\n","Merrily Gere, 860 424 3416,\nMerrily.Gere@ct.gov","Ozone season and non-ozone season limits also apply.  Refer to the rule for detailed information.  "]
["DC","District-wide","Distillate  0.09 (but 0.12 during natural gas curtailment) Residual  Banned","calendar day average","Distillate  0.12 Residual   Banned","calendar day average","Distillate  0.12 Residual  Banned","calendar day average","20 DCMR § 805.5, RACT for Major Stationary Sources of Oxides of Nitrogen: http://www.dcregs.dc.gov/Gateway/RuleHome.aspx?RuleNumber=20-805;\n20 DCMR § 801, includes a ban on No. 5 fuel oil and heavier as of July 1, 2016:\nhttp://www.dcregs.dc.gov/Gateway/RuleHome.aspx?RuleNumber=20-801","Joseph Jakuta, 202 669-5817, joseph.jakuta@dc.gov"]
["DE","Statewide","LEA, LNB, FGR","24-hr","0.25 to 0.43","24-hr","0.25 to 0.43","24-hr","7 DE Admin Code 1112, Control of Nitrogen Oxides Emissions: http://regulations.delaware.gov/AdminCode/title7/1000/1100/1112.shtml\n","Robert Clausen robert.clausen@delaware.gov\n302-739-9402"]
["MA","Statewide","Distillate 0.12     Residual 0.30","1-hour",0.15,"1-hour",0.15,"24-hour","310 CMR 7.19","Marc Cohen; Marc.cohen@mass.gov 857-256-4027"," "]
["MD","Statewide","no limit","not applicable",0.25,"30 day rolling average",0.3,"30 day rolling average","COMAR 26.11.09.08 B, C\nhttps://2019-dsd.maryland.gov/regulations/Pages/26.11.09.08.aspx \n","Randy Mosier, 410 537 4488,\nRandy.Mosier@maryland.gov;"]
["ME","Statewide",0.3,"1-hr avg",0.3,"1-hr avg",0.3,"1-hr avg","Reasonably Available Control Technology For Facilities that Emit Nitrogen Oxides (NOx-RACT), 06-096 C.M.R. ch. 138: http://www.maine.gov/dep/air/rules/index.html","Jeff Crawford, (207) 287-7647, jeff.s.crawford@maine.gov "]
["NH","Statewide"," 0.12 to 0.50 (depending on boiler type)","24-hr calendar day avg (if CEM is used) or 1-hr avg verified through stack test"," 0.25 to 0.50 (depending on boiler type)","24-hr calendar day avg (if CEM is used) or 1-hr avg verified through stack test"," 0.25 to 0.50 (depending on boiler type)","24-hr calendar day avg (if CEM is used) or 1-hr avg verified through stack test","NH Administrative Rule Env-A 1300 NOx RACT http://des.nh.gov/organization/commissioner/legal/rules/documents/env-a1300.pdf Parts Env-A 1303 through Env-A 1305","Cathy A. Beahm\ncatherine.a.beahm@des.nh.gov\n(603) 271-6793\n","Parts Env-A 1303-1305 "]
["NJ","Statewide","0.08 Lb/MMBTU (No. 2 oil) 0.20 (other liquid) (Boiler size 25 to 100 MMBTU/Hr)","1-hour","0.10 Lb/MMBTU (No. 2 oil) 0.20 (other liquid) (Boiler size >100 MMBTU/Hr)","1-hour, Daily if CEMs","1.0 Lb/MWH (0.10 Lb/MMBTU) (No. 2 oil), 2.0 Lb/MWH (0.20 Lb/MMBTU (heavy oil) (boilers serving EGU)","Daily w/CEM","N.J.A.C. 7:27 19.7(i), Table 9 and N.J.A.C. 7:27-19.4, Table 3 ","Ketan Bhandutia 609-984-6356\nKetan.Bhandutia@dep.nj.gov","CEM required for boilers > 250 MMBTU/Hr  per N.J.A.C. 7:27-19.4(b) and 19.7(d)","SUBCHAPTER 19 (state.nj.us)"]
["NY","Statewide","0.08 (distillate oil) or    0.20 (residual oil)","With CEM - 24 hour ozone season/ 30 day non-ozone season wo/CEM - 1-hour",0.15,"With CEM - 24 hour ozone season/ 30 day non-ozone season wo/CEM - 1-hour","0.15 to 0.20","With CEM - 24 hour ozone season/ 30 day non-ozone season","Subpart 227-2, Effective: 7/8/2010, Submitted: 8/19/2010, Final:  77 FR 13974, 78 Fr 41846; https://www.federalregister.gov/articles/2013/07/12/2013-16493/approval-and-promulgation-of-implementation-plans-new-york-state-ozone-implementation-plan-revision","Mike Jennings, mike.jennings@dec.ny.gov; Robert Bielawa, robert.bielawa@dec.ny.gov;"]
["PA","Statewide","Distillate  0.12 lb/MMBtu,  Residual  0.20 lb/MMBtu","Daily, if CEMS","Distillate  0.12 lb/MMBtu,  Residual  0.20 lb/MMBtu","Daily, if CEMS","Distillate  0.12 lb/MMBtu,  Residual  0.20 lb/MMBtu","Daily, if CEMS","PROPOSED - Additional RACT Requirements for Major Sources of NOx and VOCs for the 2015 Ozone NAAQS Sections 129.111 - 129.115. Additional RACT Requirements for Major Sources of NOx and VOCs. ","Susan Hoyle, shoyle@pa.gov;\nRandy Bordner, ranbordner@pa.gov;\nSusan Foster, sufoster@pa.gov;\nSean Wenrich, sewenrich@pa.gov;"," "]
["RI","Statewide","Distillate  0.12  Residual  LNB & FGR ","instantaneous","Distillate  0.12  Residual  LNB & FGR ","instantaneous","Distillate  0.25  Residual  LNB & FGR (utility boiler)","instantaneous","Air Pollution Control Regulation Number 27, Control of Nitrogen Oxide Emissions","Karen Slattery, karen.slattery@dem.ri.gov"]
["VA","OTR Jurisdiction","0.25 to 0.43",null,"0.25 to 0.43",null,"0.25 to 0.43",null,"9 VAC 5 Chapter 40 Article 51; http://www.deq.virginia.gov/Portals/0/DEQ/Air/Regulations/451.pdf","Doris McLeod 804-698-4197\ndoris.mcleod@deq.virginia.gov","Unit specific control requirements in RACT SIP."]
["VT","Statewide","no limit","not applicable","no limit","not applicable",0.3,null,"No action to date; http://dec.vermont.gov/air-quality/laws","Jay Hollingsworth, 802 272-3006, Jay.Hollingsworth@vermont.gov"]

{"sheet":"Combustion_Gas_Turbines","index":7,"n_rows":39,"n_cols":13,"rows_kept":39,"cut":false,"hidden":false,"merged":[[4,10,6,10],[4,11,6,11],[4,12,6,12],[5,2,5,3],[5,4,5,5],[5,6,5,7],[5,8,5,9],[39,0,39,8],[40,0,40,8],[4,0,6,0],[4,1,6,1],[4,2,4,9],[31,1,31,9]]}
[]
["Summary Table: Combustion Turbine Engines"]
["See \"NOx RACT Rules\" tab for additional information ",null,null,"updated March 27, 2023"]
[]
["State","Geographic Area","NOx Limits and Averaging Periods",null,null,null,null,null,null,null," RACT REGULATIONS","State Contacts","Comments"]
[null,null,"Simple Cycle >25 MW Gas-fired",null,"Simple Cycle >25 MW Oil-fired",null,"Combined Cycle >25 MW Gas-fired",null,"Combined Cycle >25 MW Oil-fired"]
[null,null,"NOx Limit","Averaging Period","NOx Limit","Averaging Period","NOx Limit","Averaging Period","NOx Limit","Averaging Period"]
["AL","Fine grid zone","No limits",null,"No limits",null,"No limits",null,"No limits"]
["AR","Statewide","No limits",null,"No limits",null,"No limits",null,"No limits"]
["CT","Statewide","\n55 ppmvd (Through May 30, 2023)                             40 ppmvd (Beginning June 1, 2023)","Daily block average.","\n75 ppmvd (Through May 30, 2023)                                     50 ppmvd (Beginning June 1, 2023)","Daily block average.","\n42 ppmvd (Through May 30, 2023)                             25 ppmvd (Beginning June 1, 2023)","Daily block average.","\n65 ppmvd (Through May 30, 2023)                                    42 ppmvd (Beginning June 1, 2023)","Daily block average."," RCSA section 22a-174-22e.  https://eregulations.ct.gov/eRegsPortal/Browse/RCSA?id=Title%2022a|22a-174|22a-174-22e|22a-174-22e","Merrily Gere, 860 424 3416,\nMerrily.Gere@ct.gov","Ozone season and non-ozone season limits also apply.  Refer to the regulation for detialed information."]
["DC ","District-wide (If ≥100 mmBTU/hr)","no limit","not applicable","no limit","not applicable",25,"instantaneous",42,"instantaneous","20 DCMR § 805.4, RACT for Major Stationary Sources of Oxides of Nitrogen: http://www.dcregs.dc.gov/Gateway/RuleHome.aspx?RuleNumber=20-805;","Joseph Jakuta, 202 669-5817, joseph.jakuta@dc.gov "]
["DE","Statewide",42,"1-hr",88,"1-hr",42,"1-hr",88,"1-hr","7 DE Admin Code 1112, Control of Nitrogen Oxides Emissions: http://regulations.delaware.gov/AdminCode/title7/1000/1100/1112.shtml\n","Robert Clausen robert.clausen@delaware.gov\n302-739-9402"]
["FL","Broward, Dade, Palm Beach Counties","0.5 lb/mmBtu",null,"0.9 lb/mmBtu  (258 ppmvd @ 15% O2)",null,"0.5 lb/mmBtu",null,"0.9 lb/mmBtu (258 ppmvd @ 15% O2)"]
["GA","45 county area",6,null,6,null,6,null,6]
["IL","Chicago & St Louis areas",42,null,96,null,42,null,96]
["IN ","Clark and Floyd Counties","No limits",null,"No limits",null,"No limits",null,"No limits"]
["KY","Statewide","No limits",null,"No limits",null,"No limits",null,"No limits"]
["LA","Baton Rouge 5 counties & Region of Influence","0.2 lb/mmBtu (54 ppmvd @ 15% O2)",null,"0.3 lb/mmBtu  (86 ppmvd @ 15% O2)",null,"0.2 lb/mmBtu (54 ppmvd @ 15% O2)",null,"0.3 lb/mmBtu  (86 ppmvd @ 15% O2)"]
["MA","Statewide","40 ppmvd @ 15% O2","1-hour","50 ppmvd @ 15% O2","1-hour","25 ppmvd @ 15% O2","24-hour","42 ppmvd @ 15% O2","24-hour","310 CMR 7.19","Marc Cohen; Marc.cohen@mass.gov 857-256-4027"," "]
["MD","Select counties",42,"1 hr",65,"1 hr",42,"1 hr",65,"1 hr","COMAR 26.11.09.08 G\nGreater than 15% capacity and optimization for less than 15% capacity.\nhttps://2019-dsd.maryland.gov/regulations/Pages/26.11.09.08.aspx ","Randy Mosier, 410 537 4488,\nRandy.Mosier@maryland.gov;","* Conversion factors from ppmv @ 15% O2 to g/hp-hr from EPA ACT, July 1993 EPA453-R-93-032"]
["ME","Statewide","no limit","not applicable","no limit","not applicable","3.5 – 9.0 ppmdv @ 15% O2","24-hr block avg",42,null,"No action to date; http://www.maine.gov/dep/air/rules/index.html","Jane Gilbert (207) 287-2455, jane.gilbert@maine.gov "]
["MI","Fine grid zone","No limits",null,"No limits",null,"No limits",null,"No limits"]
["MO","St Louis area",75,null,100,null,75,null,100]
["MS","Statewide","No limits",null,"No limits",null," ",null,"No limits"]
["NC","Charlotte 6 county area",75,null,95,null,75,null,95]
["NH","Statewide","25 ppmvd @ 15% O2 (1999 and later); 55 ppmvd @ 15% O2 (pre-1999)","Hourly avg","75 ppmvd @ 15% O2","Hourly avg","42 ppmvd @ 15% O2","Hourly avg","65 ppmvd @ 15% O2","Hourly avg","NH Administrative Rule Env-A 1300 NOx RACT (Part Env-A 1306 Stationary Combustion Turbines) http://des.nh.gov/organization/commissioner/legal/rules/documents/env-a1300.pdf ","Cathy A. Beahm\ncatherine.a.beahm@des.nh.gov\n(603) 271-6793\n","Part Env-A 1306 Combustion Turbines "]
["NJ"," Statewide (≥ 15 MW)","1.00 lb/MWh (25 ppmvd@15%O2)","1-hour w/o CEM,     Daily w/CEM (Ozone Season),                         1-hour w/o CEM,       30-day w/CEM (Non-ozone Season)","1.60 lb/MWh (42 ppmvd@15%O2)","1-hour w/o CEM,             Daily w/CEM (Ozone Season),                                     1-hour w/o CEM,                   30-day w/CEM (Non-ozone Season)","0.75 lb/MWh (25 ppmvd@15%O2)","1-hour w/o CEM,             Daily w/CEM (Ozone Season),                                     1-hour w/o CEM,                   30-day w/CEM (Non-ozone Season)","1.20 lb/MWh (42 ppmvd@15%O2)","1-hour w/o CEM,             Daily w/CEM (Ozone Season),                                     1-hour w/o CEM,                   30-day w/CEM (Non-ozone Season)","N.J.A.C. 7:27 19.5, Table 7\nhttps://www.nj.gov/dep/aqm/currentrules/Sub19.pdf","Ketan.Bhandutia@dep.nj.gov/ David.Owen@dep.nj.gov\n","(a) Simple Cycle Turbines: N.J.A.C. 7:27-19.5(g), Table 7 sets forth NOx emission limits of 1.0 Lb/MWh for gas fired units and 1.60 Lb/MWh for oil fired units. These output-based emission limits are based on an input-based emission rate of 25 ppm (0.100 Lb/MMBTU) for natural gas and 42 ppm (0.160 Lb/MMBTU for fuel oil combustion and 35 percent efficiency for simple cycle turbines.                              (b) Combined Cycle Turbines: N.J.A.C. 7:27-19.5(g), Table 7 sets forth NOx emission limits of 0.75 Lb/MWh for gas fired units and 1.20 Lb/MWh for oil fired units. These output-based emission limits are based on an input-based emission rate of 25 ppm (0.100 Lb/MMBTU) for natural gas and 42 ppm (0.160 Lb/MMBTU for fuel oil combustion and 46 percent efficiency for combined cycle turbines. "]
["NY","Statewide","50 ppmvd@15%O2","1-hour ozone season, 30-day non-ozone season","100 ppmvd@15%O2","1-hour ozone season, 30-day non-ozone season","Case-by-Case Evaluation, 42 ppmvd@15%O2 maximum limit","1-hour","Case-by-Case Evaluation, 65 ppmvd@15%O2 maximum limit","1-hour","Under Development; https://www.federalregister.gov/articles/2013/07/12/2013-16493/approval-and-promulgation-of-implementation-plans-new-york-state-ozone-implementation-plan-revision","Mike Jennings, mike.jennings@dec.ny.gov; Robert Bielawa, robert.bielawa@dec.ny.gov;"]
["OH","Cleveland 8 county area",42,null,96,null,42,null,96]
["OK","Statewide","No limits",null,"No limits",null,"No limits",null,"No limits"]
["PA","Statewide",">4100 BHP (42 ppmvd@15%O2) ","30-operating  w/CEMS",">4100 BHP (96 ppmvd@15%O2) ","30-operating  w/CEMS",">4,100 bhp and <180 MW (42 ppmvd@15%O2); >180 MW (4 ppmvd@15%O2) ","30-operating  w/CEMS",">4,100 bhp and <180 MW (96 ppmvd@15%O2); >180 MW (8 ppmvd@15%O2) ","30-operating  w/CEMS","PROPOSED - Additional RACT Requirements for Major Sources of NOx and VOCs for the 2015 Ozone NAAQS Sections 129.111 - 129.115. Additional RACT Requirements for Major Sources of NOx and VOCs. ","Susan Hoyle, shoyle@pa.gov;\nRandy Bordner, ranbordner@pa.gov;\nSusan Foster, sufoster@pa.gov;\nSean Wenrich, sewenrich@pa.gov;"," "]
["RI","Statewide by permit",null,null,null,null,null,null,null,null,"Air Pollution Control Regulation Number 27, Control of Nitrogen Oxide Emissions","Karen Slattery, karen.slattery@dem.ri.gov"]
["SC","Statewide","No limits",null,"No limits",null,"No limits",null,"No limits"]
["TN","Davidson, Rutherford, Sumner, Williamson, Wilson Counties","source specific RACT",null,"source specific RACT",null,"source specific RACT",null,"source specific RACT"]
["TX","Dallas and Houston areas","0.032 lb/mmBtu  (9 ppmvd @ 15% O2)",null,"0.032 lb/mmBtu  (9 ppmvd @ 15% O2)",null,"0.032 lb/mmBtu  (9 ppmvd @ 15% O2)",null,"0.032 lb/mmBtu  (9 ppmvd @ 15% O2)"]
["VA","OTR Jurisdiction",42,null,"65 - 77",null,42,null,"65 - 77",null,"9 VAC 5 Chapter 40 Article 51 http://www.deq.virginia.gov/Portals/0/DEQ/Air/Regulations/451.pdf","Doris McLeod\ndoris.mcleod@deq.virginia.gov","Unit specific control requirements in RACT SIP."]
["VT","Statewide","no limit","not applicable","no limit","not applicable","no limit","not applicable","no limit","not applicable","VT Regulation 5-271","Jay Hollingsworth, 802 272-3006, Jay.Hollingsworth@vermont.gov"]
["WI","Milwaukee 7 county area","25 to 42",null,"65 to 96",null,9,null,9]
["WV","Statewide","No limits",null,"No limits",null,"No limits",null,"No limits"]

{"sheet":"IC_Engines","index":8,"n_rows":38,"n_cols":13,"rows_kept":38,"cut":false,"hidden":false,"merged":[[4,11,6,11],[4,12,6,12],[5,2,5,3],[5,4,5,5],[5,6,5,7],[5,8,5,9],[38,0,38,8],[4,0,6,0],[4,1,6,1],[4,2,4,9],[4,10,6,10]]}
[]
["Summary Table: IC Engines > 500 hp"]
["See \"NOx RACT Rules\" tab for additional information "]
[]
["State","Geographic Area","NOx Limits and Averaging Periods",null,null,null,null,null,null,null," RACT REGULATIONS","State Contacts","Comments"]
[null,null,"Gas-fired, Lean Burn",null,"Gas-fired, Rich Burn",null,"Diesel",null,"Dual Fuel"]
[null,null,"NOx Limit","Averaging Period","NOx Limit","Averaging Period","NOx Limit","Averaging Period","NOx Limit","Averaging Period"]
["AL","Fine grid zone","No limits",null,"No limits",null,"No limits",null,"No limits"]
["AR","Statewide","No limits",null,"No limits",null,"No limits",null,"No limits"]
["CT","Statewide ","2.5 g/bk hp-hr (Through May 30, 2023)                                                      1.5 g/bk hp-hr (Beginning June 1, 2023)","Daily block average.","2.5 g/bk hp-hr (Through May 30, 2023)                                                        1.5 g/bk hp-hr (Beginning June 1, 2023)","Daily block average.","8.0 g/bk hp-hr (Through May 30, 2023)                                              1.5 - 2.3  g/bk hp-hr (Beginning June 1, 2023)","Daily block average.","Multi-fuel provisions.  See rule for details.","Daily block average."," RCSA section 22a-174-22e.\nhttps://eregulations.ct.gov/eRegsPortal/Browse/RCSA?id=Title%2022a|22a-174|22a-174-22e|22a-174-22e","Merrily Gere, 860 424 3416,\nMerrily.Gere@ct.gov"]
["DC","Districtwide","0.7 g/b-hp","Instantaneous","0.7 g/b-hp","Instantaneous","6.5 g/b-hp, if permitted on or after 8/3/2023\n2.3 g/b-hp, otherwise","Instantaneous","6.5 g/b-hp, if permitted on or after 8/3/2023\n2.3 g/b-hp, otherwise","Instantaneous","20 DCMR § 805.7, RACT for Major Stationary Sources of Oxides of Nitrogen: http://www.dcregs.dc.gov/Gateway/RuleHome.aspx?RuleNumber=20-805;","Joseph Jakuta, 202 669-5817, joseph.jakuta@dc.gov  "]
["DE","Statewide","Technology Stds.","Not specified","Technology Stds.","Not specified","Technology Stds.","Not specified","Technology Stds.","Not specified","7 DE Admin Code 1112, Control of Nitrogen Oxides Emissions  http://regulations.delaware.gov/AdminCode/title7/1000/1100/1112.shtml#TopOfPage\n","Robert Clausen robert.clausen@delaware.gov\n302-739-9402"]
["FL","Broward, Dade, Palm Beach Counties","No limits",null,"No limits",null,"No limits",null,"No limits"]
["GA","45 county area","?",null,"?",null,"?",null,"?"]
["IL","Chicago & St Louis areas","210 ppmvd @ 15% O2 (Appoximately 2.9 g/hp-hr)*",null,"150 ppmvd @ 15% O2 (Approximately 2.2 g/hp-hr)*",null,"660 ppmvd @ 15% O2",null,"660 ppmvd @ 15% O2"]
["IN ","Clark and Floyd Counties","No limits",null,"No limits",null,"No limits",null,"No limits"]
["KY","Statewide","No limits",null,"No limits",null,"No limits",null,"No limits"]
["LA","Baton Rouge 5 counties & Region of Influence",4,null,2,null,"?",null,"?"]
["MA","Statewide","1.5 g/bhp-hr","       1-hour or 24-hour if equal to or greater than 30 MM Btu/hr","1.5 g/bhp-hr","      1-hour or 24-hour if equal to or greater than 30 MMBtu/hr","2.3 g/bhp-hr","       1-hour or 24-hour if equal to or greater than 30 MM Btu/hr","2.3 g/bhp-hr","       1-hour or 24-hour if equal to or greater than 30 MM Btu/hr","310 CMR 7.19 Note: Applicable only when engine is operated over a 1000 hours during any consectuitve 12-month period. ","Marc Cohen; Marc.cohen@mass.gov 857-256-4027"]
["MD","Select counties","40 CFR Part 63 Subpart ZZZZ; 40 CFR Subpart IIII or JJJJ","see cite in cell C20","40 CFR Part 63 Subpart ZZZZ; 40 CFR Subpart IIII or JJJJ","see cite in cell C20","40 CFR Part 63 Subpart ZZZZ; 40 CFR Subpart IIII or JJJJ","see cite in cell C20","40 CFR Part 63 Subpart ZZZZ; 40 CFR Subpart IIII or JJJJ","see cite in cell C20","see cite in cell C20. IC engines at NG Compressor stations subject to COMAR 26.11.29","Randy Mosier, 410 537 4488,\nRandy.Mosier@maryland.gov;","* Conversion factors from ppmv @ 15% O2 to g/hp-hr from EPA ACT, July 1993 EPA453-R-93-032. "]
["ME","Statewide","no limit","not applicable","no limit","not applicable","3.2 and 4.16 lb/MMBtu (Source-specific RACT)","1-hr avg","no limit","not applicable","Source-specific RACT per Title V license","Jane Gilbert (207) 530-0554, jane.gilbert@maine.gov "]
["MI","Fine grid zone",3,null,1.5,null,2.2999999999999998,null,1.5]
["MO","St Louis area","3.0 - 10.0",null,"2.5 to 9.5",null,"2.5 - 8.5",null,"2.5 - 6.0"]
["MS","Statewide","No limits",null,"No limits",null,"No limits",null,"No limits"]
["NH","Statewide","2.5 grams/bhp-hr","Hourly","1.5 grams/bhp-hr","Hourly","6.4 grams/kW-hr for > 560 kW\n4.0 grams/kW-hr for <= 560 kW ","Hourly","6.4 grams/kW-hr for > 560 kW\n4.0 grams/kW-hr for <= 560 kW ","Hourly","NH Administrative Rule Env-A 1300 NOx RACT (Part Env-A 1307 Stationary Internal Combustion Engines) http://des.nh.gov/organization/commissioner/legal/rules/documents/env-a1300.pdf","Cathy A. Beahm\ncatherine.a.beahm@des.nh.gov\n(603) 271-6793\n","Part Env-A 1307 Stationary Internal Combustion Engines"]
["NJ","Statewide","1.5 g/bhp-hr (200 bhp/148 KW or greater), 0.9 g/bhp-hr (50 bhp/37 KW or greater)","1-hour","1.5 g/bhp-hr (200 bhp/148 kw or greater), 0.9 g/bhp-hr (50 bhp/37 kw or greater)","1-hour","2.3 g/b/hp-hr ","1-hour","2.3 g/bhp-hr","1-hour","N.J.A.C. 7:27 19.8(e)1, Table 10 and 19.8(e)2&3\nhttps://www.nj.gov/dep/aqm/currentrules/Sub19.pdf","Ketan Bhandutia 609-984-6356\nKetan.Bhandutia@dep.nj.gov","1.5 g/bhp-hr or 80% NOx redcution from uncontrolled NOx level for Lean Burn fuled by Gasesous fuel.  The NOx limit for compressor engines 200 to 500 bhp size and combusting natural gas is 2.0 g/bhp-hr. Please see N.J.A.C. 7:27-19.8(h)."]
["NY","Statewide","1.5 grams/bhp-hr","1-hour","1.5 grams/bhp-hr","1-hour","2.3 grams/bhp-hr","1-hour","2.3 grams/bhp-hr","1-hour","6 NYCRR Part 227-2 (NOx RACT)","Mike Jennings, mike.jennings@dec.ny.gov; Robert Bielawa, robert.bielawa@dec.ny.gov;"]
["OH","Cleveland 8 county area",3,null,3,null,3,null,3]
["OK","Statewide","No limits",null,"No limits",null,"No limits",null,"No limits"]
["PA","Statewide","3 g/bhp-hr (= or > 500 and < 3500 BHP), 0.6 g/bhp-hr (= or > 3500 BHP)","1-hour ","2  grams/bhp-hr","1-hour ","> 500 bhp (1.6  grams/bhp-hr)","1-hour ","> 500 bhp (1.6  grams/bhp-hr)","1-hour ","PROPOSED - Additional RACT Requirements for Major Sources of NOx and VOCs for the 2015 Ozone NAAQS Sections 129.111 - 129.115. Additional RACT Requirements for Major Sources of NOx and VOCs. ","Susan Hoyle, shoyle@pa.gov;\nRandy Bordner, ranbordner@pa.gov;\nSusan Foster, sufoster@pa.gov;\nSean Wenrich, sewenrich@pa.gov;"," "]
["RI","Statewide",2.5,"Instantaneous",1.5,"Instantaneous",9,"Instantaneous","Not specified in Regulation, no sources.","not applicable","Air Pollution Control Regulation Number 27, Control of Nitrogen Oxide Emissions","Karen Slattery, karen.slattery@dem.ri.gov"]
["SC","Statewide","No limits",null,"No limits",null,"No limits",null,"No limits"]
["TN","Davidson, Rutherford, Sumner, Williamson, Wilson Counties","Source specific RACT",null,"Source specific RACT",null,"Source specific RACT",null,"Source specific RACT"]
["TX","Dallas and Houston areas",0.5,null,0.5,null,"2.8 to 6.9",null,0.5]
["VA","OTR Jurisdiction","Source specific RACT","not applicable","Source specific RACT","not applicable","Source specific RACT","not applicable","Source specific RACT","not applicable","9 VAC 5 Chapter 40 Article 51; http://www.deq.virginia.gov/Portals/0/DEQ/Air/Regulations/451.pdf","Doris McLeod\ndoris.mcleod@deq.virginia.gov","Unit specific control requirements in RACT SIP."]
["VT","Statewide",4.8,null,4.8,null,4.8,null,4.8,null,"VT Regulation 5-271 (https://dec.vermont.gov/sites/dec/files/documents/Vermont%20RACT%20SIP%202018-submittal%20letter%20and%20all%20enclosures.pdf) ","Jay Hollingsworth, 802 272-3006, Jay.Hollingsworth@vermont.gov"]
["WI","Milwaukee 7 county area",3,null,3,null,3,null,3]
["WV","Statewide","No limits",null,"No limits",null,"No limits",null,"No limits"]

{"sheet":"NOx_MWC","index":9,"n_rows":35,"n_cols":9,"rows_kept":35,"cut":false,"hidden":false,"merged":[[26,1,26,6],[14,6,17,6],[11,1,12,1],[11,2,12,2],[11,3,12,3],[11,5,12,5],[24,1,24,5],[20,0,22,0],[9,7,12,7],[7,1,7,5],[8,1,8,5],[9,4,12,4],[14,10,17,15],[5,8,6,8],[5,7,6,7],[14,8,17,8],[9,0,12,0],[9,6,12,6],[14,7,17,7],[14,0,17,0]]}
[]
["Summary Table: Municipal Waste Combustors"]
[null,"updated March 27, 2023"]
[]
["State","MWC Type","NOx limit  (ppmvd @7% O2)","NOx Averaging  Time","Ammonia Slip Limit (ppmvd @7% O2)","NOx Standards Regulation"," RACT REGULATIONS","State Contacts","Comments"]
["CT","add type if applicable","150 for all","24-hour daily average","20a","RCSA section 22a-174-38","Revised RCSA section 22a-174-38.  https://eregulations.ct.gov/eRegsPortal/Browse/RCSA?id=Title%2022a|22a-174|22a-174-38|22a-174-38","Merrily Gere, 860 424 3416, Merrily.Gere@CT.gov; ","aCurrent Standard as of 08/02/16;  "]
[null,"add type if applicable","146 for all","24-hour daily average","20a","RCSA section 22a-174-38"]
["DC","*No Sources"]
["DE","*No Sources",null,null,null,null,null,null,"Delaware has prohibited MWCs"]
["MA","refuse derived",146,"24 hrs","10 - default","310 CMR 7.08(2)","310 CMR 7.08(2)","Marc Cohen; Marc.cohen@mass.gov 857-256-4027"]
[null,"mass burn waterwall",150,"24 hrs",null,"310 CMR 7.08(2)"]
[null,"small MWCs",167,"24 hrs",null,"310 CMR 7.19(9)"]
[]
["MD","large MWCs","140-150/105-145","24-hr/30 day rolling","None","COMAR 26.11.08.10","COMAR 26.11.08.10 \nhttps://2019-dsd.maryland.gov/regulations/Pages/26.11.08.10.aspx\n\n","Randy Mosier  410 537 4488  randy.mosier@maryland.gov","Small MWCs subject to 40 CFR 62 Subpart JJJ. No small MWCs in Maryland."]
["ME","Eco Maine - Portland",180,"24-hr daily avg.",10,"06-096 C.M.R. ch. 138","http://www.maine.gov/dep/air/rules/","Jeff Crawford  207-287-7647  jeff.s.crawford@maine.gov","Data from D. Mackintosh, EPA: Maine MWC limits  http://www.maine.gov/dep/air/rules/ \nRefuse Derived Fuel (RDF) Municipal Solid Waste (MSW) Incinerator NOx emissions limit: 180 ppm, corrected to 7% oxygen, daily average;\nMass Burn Municipal Solid Waste (MSW) Incinerators NOx emission limit: 180 / 200 ppm, corrected to 7% oxygen, daily average basis;\nReference: Chapter 138: Reasonably Available Control Technology for Facilities that Emit Nitrogen Oxides (NOx-RACT)"]
[null,"Maine Energy Recovery Co (facility closed permanently in 2012)","NA","NA","NA","NA"]
[null,"Mid Maine Waste Action Corp","315 (summer); 350 (winter)","24-hr daily avg.","NA","06-096 C.M.R. ch. 138"]
[null,"Penobscot Energy Recovery Co",230,"24-hr daily avg.","NA","06-096 C.M.R. ch. 138"]
["NH","all types","150 except for startup or shutdown","calendar day avg.",20,"Env-A 1309 (Incinerators)","http://des.nh.gov/organization/commissioner/legal/rules/documents/env-a1300.pdf. Part Env-A 1300 Nitrogen Oxides Reasonably Available Control Technology","Cathy A. Beahm\ncatherine.a.beahm@des.nh.gov\n(603) 271-6793\n"]
["NJ","add type if applicable","150 ppmvd@7%O2  ","calendar day avg.","facility by facility","N.J.A.C. 7:27 19.12  \nhttps://www.nj.gov/dep/aqm/currentrules/Sub19.pdf","https://www.nj.gov/dep/aqm/currentrules/Sub19.pdf",null,"Covanta Warren (PI 85455) has been shut down and its operating permit will be terminated."]
["NY","Mass Burn Waterwall","150 ppmvd@7%O2","24-hr daily avg./annual avg.","facility by facility","6 NYCRR Subpart 219-10",null,"Mark Lanzafame, mark.lanzafame@dec.ny.gov"]
[null,"Rotary Combustor","170/150 ppmvd@7%O2","24-hr daily avg./annual avg.","facility by facility","6 NYCRR Subpart 219-10"]
[null,"Other Configurations ","Case-by-Case","24-hr daily avg./annual avg.","facility by facility","6 NYCRR Subpart 219-10"]
["PA","All MWCs",110,"Daily average"," ","PROPOSED - Additional RACT Requirements for Major Sources of NOx and VOCs for the 2015 Ozone NAAQS Sections 129.111 - 129.115. Additional RACT Requirements for Major Sources of NOx and VOCs. ","PROPOSED - Additional RACT Requirements for Major Sources of NOx and VOCs for the 2015 Ozone NAAQS Sections 129.111 - 129.115. Additional RACT Requirements for Major Sources of NOx and VOCs. ","Susan Hoyle   shoyle@pa.gov\nRandy  Bordner   ranbordner@pa.gov\nSusan Foster   sufoster@pa.gov\nSean Wenrich   sewenrich@pa.gov"," "]
["RI","*No Sources"]
["VA (OTR Jurisdiction)","case by case basis","90 ppvd on an annual basis; 110 ppmvd on a 24 hour basis.","annual/24 hr","N/A","Permit dated 2019-02-08",null,"Doris Mcleod  doris.mcleod@deq.virginia.gov","See permit dated 2019-02-08 for Covanta Fairfax (Registration Numer 71895) and permit dated 2019-02-08 for Covanta Alexandria/Arlington (Registration Number 71920) adopted into VA's SIP on 12/09/2019, 84 FR 67199."]
["VT","*No Sources"]
[]
[]
[]
[null,"For facility-specific information see: "]
[]
[]
[]
[null,"mass burn = MB; waterwall = WW; rotary waterwall = RC; refractory wall = REF; refuse-derived fuel = RDF; reciprocating grate waterwall= RG – WW; mass burn - single chamber = MB – SC;  NA = Not Applicable."]

{"sheet":"Cement_Kilns","index":10,"n_rows":41,"n_cols":12,"rows_kept":41,"cut":false,"hidden":false,"merged":[[4,0,6,0],[4,1,4,8],[4,9,6,9],[4,10,6,10],[4,11,6,11],[5,1,5,2],[5,3,5,4],[5,5,5,6],[5,7,5,8],[7,1,7,7],[18,1,18,7],[9,1,9,9],[10,1,10,9],[11,1,11,9],[19,1,19,7],[38,1,38,7],[39,1,39,7],[40,1,40,7],[25,1,25,7],[27,1,27,7],[29,1,29,7],[33,1,33,7],[34,1,34,7],[26,1,26,7],[32,1,32,7]]}
[]
["Summary Table: Cement Kilns "]
[null,"updated March 27, 2023"]
[]
["State","NOx Limits and Averaging Periods",null,null,null,null,null,null,null," RACT REGULATIONS","State Contacts","Comments"]
[null,"Long Dry",null,"Long Wet",null,"Pre-heater",null,"Pre-calciner"]
[null,"NOx Limit","Averaging Period","NOx Limit","Averaging Period","NOx Limit","Averaging Period","NOx Limit","Averaging Period"]
["AL","Ozone season: low-NOX burners, mid-kiln system firing, or approved ACT  "]
["AR","No Limits",null,"No Limits",null,"No Limits",null,"No Limits"]
["CT","No Cement Kilns in State"]
["DC","No Cement Kilns in District"]
["DE","No Cement Kilns in State"]
["FL","No Limits",null,"No Limits",null,"No Limits",null,"No Limits"]
["GA","No Limits",null,"No Limits",null,"No Limits",null,"No Limits"]
["IL",5.0999999999999996,null,5.0999999999999996,null,3.8,null,2.8]
["IN ",6,null,5.0999999999999996,null,3.8,null,2.8]
["IN (Clark & Floyd)","10.8 (op day)/6 (30 day)",null,"No Limits",null,"5.9 (op day)/4.4 (30 day)",null,"No Limits"]
["KY",6.6,null,6.6,null,6.6,null,6.6]
["LA","No Cement Kilns in State"]
["MA","No Cement Kilns in State"]
["MD",3.4,"30 day rolling","NA","NA",2.4,"30 day rolling",2.4,"30 day rolling","COMAR 26.11.30:  https://2019-dsd.maryland.gov/regulations/Pages/26.11.30.07.aspx\nEPA Consent Agreement (Docket 01-2013-0053, Sept 2013)","Randy Mosier, 410 537 4488,\nRandy.Mosier@maryland.gov;","* After 04/01/2017"]
["ME",2.33,"not available","NA","not applicable","-",null,"-",null,"EPA Consent Agreement (Docket 01-2013-0053, Sept 2013)","Jeff Crawford, (207) 287-7647, jeff.s.crawford@maine.gov "]
["MI",6,null,5.0999999999999996,null,3.8,null,2.8]
["MO",6,null,6.8,null,4.0999999999999996,null,2.7]
["MS","No Limits",null,"No Limits",null,"No Limits",null,"No Limits"]
["NC","No Cement Kilns in State"]
["NH","No Cement Kilns in State"]
["NJ","No Cement Kilns in State"]
["NY","2.88 lb NOx/ton clinker (using SNCR); SCC:  3-05-006-06 (Dry):                                           ","30-day rolling average","5.2 lb NOx/ton clinker; SCC:  3-05-007-06 (Wet):  ","30-day rolling average",null,null,null,null,"Subpart 220-1 - Effective: 7/11/2010 Submitted: 8/19/2010; Final: 77 FR 13974, 78 Fr 41846:    https://www3.epa.gov/region02/air/sip/ny_reg.htm; ","Mike Jennings, mike.jennings@dec.ny.gov"]
["OH","Ozone season: low-NOX burners, mid-kiln system firing, or approved ACT  "]
["OK","No Limits",null,"No Limits",null,"No Limits",null,"No Limits"]
["PA","3.0  lbs/ton of clinker produced","30-operating day","3.88 lbs/ton of clinker produced","30-operating day","2.30  lbs/ton of clinker produced","30-operating day","2.30 lbs/ton of clinker produced","30-operating day","PROPOSED - Additional RACT Requirements for Major Sources of NOx and VOCs for the 2015 Ozone NAAQS Sections 129.111 - 129.115. Additional RACT Requirements for Major Sources of NOx and VOCs. "," "," "]
["RI","No Cement Kilns in State"]
["SC","Ozone season: low-NOX burners, mid-kiln system firing, or approved ACT  "]
["TN","Ozone season: low-NOX burners, mid-kiln system firing, or approved ACT  "]
["TX",5.0999999999999996,null,4,null,3.8,null,2.8]
["TX (Ellis County - Ozone Season RACT)","No Limits",null,3.4,null,"No Limits",null,1.7]
["VA  (OTR Jurisdiction)","No Limits","not applicable","No Limits","not applicable","No Limits","not applicable","No Limits","not applicable",null,null,"No cement kilns in the OTR portion of VA."]
["VT","No Cement Kilns in State"]
["WI","No Cement Kilns in State"]
["WV","Ozone season: low-NOX burners, mid-kiln system firing, or approved ACT  "]

{"sheet":"Hot_Mix_Asphalt_Production","index":11,"n_rows":39,"n_cols":10,"rows_kept":39,"cut":false,"hidden":false,"merged":[[4,8,6,8],[4,9,6,9],[5,1,5,2],[5,3,5,4],[5,5,5,6],[4,1,4,5],[4,0,6,0],[4,7,6,7],[27,1,27,5],[35,1,35,5],[36,1,36,5],[31,1,31,5],[11,1,11,5],[9,1,9,5],[19,1,19,6]]}
[]
["Summary Table: Hot Mix Asphalt Production Plants"]
["See \"NOx RACT Rules\" tab for additional information ",null,null,null,"updated March 27, 2023"]
[]
["State","NOx Limits and Averaging Periods",null,null,null,null,null," RACT REGULATIONS","State Contacts","Comments"]
[null,"Natural Gas ",null,"No. 2  Oil ",null,"Other Oils"]
[null,"NOx Limit","Averaging Period","NOx Limit","Averaging Period","NOx Limit","Averaging Period"]
["AL"]
["AR"]
["CT","No specific emission limits for Hot Mix Asphalt Production Plants.  The limits of RCSA section 22a-174-22e apply to fuel-burning equipment.  ",null,null,null,null,null," RCSA section 22a-174-22e.  Note:  The section does not include a limit that specifically applies to \"asphalt production plants\" but the fuel-burning equipment is regulated.  https://eregulations.ct.gov/eRegsPortal/Browse/RCSA?id=Title%2022a|22a-174|22a-174-22e|22a-174-22e","Merrily Gere  860 424 3416  Merrily.Gere@ct.gov;"]
["DC",150,"Instantaneous",150,"Instantaneous",150,"Instantaneous","20 DCMR § 805.6, RACT for Major Stationary Sources of Oxides of Nitrogen: http://www.dcregs.dc.gov/Gateway/RuleHome.aspx?RuleNumber=20-805;","Joseph Jakuta, 202 535-2988, joseph.jakuta@dc.gov ","150 ppmvd @ 7% O2 is the NOx RACT standard for major sources (25 TPY) of NOx only (two of the three HMA facilities in DC). No NOx RACT standard is specified for minor sources of NOx. The third HMA facility, a 225 TPH continuous drum-mix asphalt plant, has limits on potential to emit keeping NOx below the major source threshold. Its NOx limits are 12.4 lb/hr and 22.0 tons per 12-month rolling period."]
["DE","No specific emission limits for Hot Mix Asphalt Production Plants",null,null,null,null,null,"http://regulations.delaware.gov/AdminCode/title7/1000/1100/1112.shtml  ","Robert Clausen robert.clausen@delaware.gov\n302-739-9402"]
["FL"]
["GA"]
["IL"]
["IN "]
["KY"]
["LA"]
["MA","no RACT limits","not applicable","no RACT limits","not applicable","no RACT limits","not applicable","No specific NOx RACT emission limits for this source category in state NOx RACT regulations. "]
["MD","No RACT sources",null,null,null,null,null,"No specific NOx RACT emission limits for this source category in state NOx RACT regulations.","Randy Mosier  410 537 4488  Randy.Mosier@maryland.gov;"]
["ME","0.12 lb/ton asphalt",null,"0.12 lb/ton asphalt",null,"0.12 lb/ton asphalt",null,"http://www.maine.gov/dep/air/rules/","Jeff Crawford, 207 287 7647, jeff.s.crawford@maine.gov"]
["MI"]
["MO"]
["MS"]
["NC"]
["NH","0.12 lb/ton asphalt (0.429 lb/MMBtu)","Hourly avg","0.12 lb/ton asphalt (0.429 lb/MMBtu)","Hourly avg","0.12 lb/ton asphalt (0.429 lb/MMBtu)",null,"NH Administrative Rule Env-A 1300 NOx RACT (Part Env-A 1308 Asphalt Plant Rotary Dryers) http://des.nh.gov/organization/commissioner/legal/rules/documents/env-a1300.pdf","Cathy A. Beahm\ncatherine.a.beahm@des.nh.gov\n(603) 271-6793\n","Part Env-A 1308 Asphalt Plant Rotary Dryers"]
["NJ","75 ppmvd@7% oxygen ","Average of three one-hour test each performed over a consecutive 60-minute perod per N.J.A.C. 7:27-19.15(a)2","100 ppmvd@7% oxygen ","Average of three one-hour test each performed over a consecutive 60-minute perod per N.J.A.C. 7:27-19.15(a)2","125  ppmvd@7% oxygen ","Average of three one-hour test each performed over a consecutive 60-minute perod per N.J.A.C. 7:27-19.15(a)2","N.J.A.C. 7:27 19.9\nhttps://www.nj.gov/dep/aqm/currentrules/Sub19.pdf","Ketan.Bhandutia@dep.nj.gov     609-984-6356","The 125 ppmvd@7% oxyen limit is for  No. 4 or heavier fuel oil or on-spec used oil or mixture of these three oils"]
["NY","No specific emission limits for Hot Mix Asphalt Production Plants",null,null,null,null,null,"Hot mix asphalt plants cap out of Title V www.dec.ny.gov/regs/2492.html","Michael Miliani, michael.miliani@dec.ny.gov; Robert Bielawa  robert.bielawa@dec.ny.gov;"]
["OH"]
["OK"]
["PA","Case-by-Case","not applicable","case-by-case"," ","case-by-case"," ","Additional RACT Requirements for Major Sources of NOx and VOCs. Sections 129.96 - 129.100. Control of NOX from Major Sources of NOx and VOC; Effective April 23, 2016. Federal Register -TBD Case by Case; http://www.pacode.com/secure/data/025/articleICIII_toc.html","Susan Hoyle, shoyle@pa.gov;  Randy Bordner, ranbordner@pa.gov; Susan Foster, sufoster@pa.gov; Sean Wenrich, sewenrich@pa.gov;"," "]
["RI","No specific regulatory emission limits for Hot Mix Asphalt Production Plants, but most are permitted",null,null,null,null,null,"No RACT sources. No regulations to date. ","Karen Slattery, karen.slattery@dem.ri.gov"]
["SC"]
["TN"]
["TX"]
["VA  (OTR Jurisdiction)","NA",null,null,null,null,null,"No major stationary hot mix asphalt plants in the Northern VA/OTR portion of VA.","Doris McLeod,\ndoris.mcleod@deq.virginia.gov","All of ~15 plants have federally enforceable limits on their PTE of NOx and VOC to make them minor sources (<100 tpy NOX, <50 TPY VOC)"]
["VT","No specific regulatory emission limits for Hot Mix Asphalt Production Plants, but most permits contain 0.06 lb/ton asphalt limit based on application submittal.",null,null,null,null,null,"No action to date; http://dec.vermont.gov/air-quality/laws","Jay Hollingsworth, 802 272-3006, Jay.Hollingsworth@vermont.gov"]
["WI"]
["WV"]

{"sheet":"Glass_Furnaces","index":12,"n_rows":20,"n_cols":8,"rows_kept":20,"cut":false,"hidden":false,"merged":[[18,1,18,5],[19,1,19,5],[17,1,17,5],[4,1,4,3],[8,1,8,5],[7,1,7,5],[6,1,6,5],[11,1,11,5],[12,1,12,4],[10,1,10,4]]}
[]
["Summary Table: Glass Furnaces"]
[null,null,null,null,null,null,"updated March 27, 2023"]
[]
[null,"NOx Limit ",null,null,null," RACT REGULATIONS","State Contacts","Comments"]
["State","Facility","Emission rate","Averaging Time","Technology"]
["CT","No Sources"]
["DC","No Sources"]
["DE","No Sources"]
["MA",null,null,"No Sources"]
["MD","No Sources",null,null,null,"COMAR 26.11.09.08I; https://2019-dsd.maryland.gov/regulations/Pages/26.11.09.08.aspx","Randy Mosier (410) 537-4488\nRandy.Mosier@maryland.gov"]
["ME","No Sources"]
["NH","Not Applicable",null,null,null,"Env-A 1300 NOx RACT   ","Cathy A. Beahm\ncatherine.a.beahm@des.nh.gov\n(603) 271-6793\n\n"]
["NJ","Existing facilities ","4.0 lbs/ton of glass removed for specialty glass  (a)","(a) W/O CEM: Average of three one-hour test per N.J.A.C. 7:27-19.15(e)2 (b) With CEM: Daily per N.J.A.C. 7:27-19.15(e)3",null,"N.J.A.C. 7:27 19.10 (a)\n","Ketan.Bhandutia@dep.nj.gov   609-984-6356","Applicability threshold is 10 tons of NOx per year in accordance with N.J.A.C. 7:27-19.2(b)6 through 9. "]
["NJ","Existing facilities ","9.2 Lbs/ton of glass removed for flat glass (b)","(a) W/O CEM: Average of three one-hour test per N.J.A.C. 7:27-19.15(e)2 (b) With CEM: Daily per N.J.A.C. 7:27-19.15(e)3",null,"N.J.A.C. 7:27 19.10 (b)","Ketan.Bhandutia@dep.nj.gov   609-984-6356","Applicability threshold is 10 tons of NOx per year in accordance with N.J.A.C. 7:27-19.2(b)6 through 9. "]
["NY",null,"NOx limits range from 1.89 lb/ton glass to 4.49 lb/ton glass","30-day rolling average",null,"Subpart 220-2 - Effective: 7/11/2010 Submitted: 8/19/2010; Final: 77 FR 13974, 78 Fr 41846; www.dec.ny.gov/regs/2492.html","Mike Jennings, mike.jennings@dec.ny.gov                                               Robert Bielawa   robert.bielawa@dec.ny.gov"]
["PA"," ","4.0 lbs/ton of glass pulled for container glass and fiberglass; 7.0 lbs/ton of glass pulled for pressed, blown and flat glass; 6.0 lbs/ton of glass pulled for all other glass","30-operating day"," ","PROPOSED - Additional RACT Requirements for Major Sources of NOx and VOCs for the 2015 Ozone NAAQS Sections 129.111 - 129.115. Additional RACT Requirements for Major Sources of NOx and VOCs. ","Susan Hoyle   shoyle@pa.gov\nRandy  Bordner ranbordner@pa.gov\nSusan Foster  sufoster@pa.gov\nSean Wenrich sewenrich@pa.gov"," "]
["RI","No Sources"]
["VA  (OTR Jurisdiction)","No glass plants in the OTR portion of Virginia.",null,null,null,null,"Doris McLeod\ndoris.mcleod@deq.virginia.gov"]
["VT","No Sources"]

{"sheet":"NatGas_Pipeline_Compressors","index":13,"n_rows":19,"n_cols":5,"rows_kept":19,"cut":false,"hidden":false,"merged":[]}
[]
["Summary Table: Natural Gas Pipeline Compressors"]
[null,"updated March 27, 2023"]
[]
[null,"NOx Limit "," RACT REGULATIONS","State Contacts","Comments"]
["State"]
["CT",null," RCSA section 22a-174-22e applies if the facility is major for NOx. Note: The section does not specifically apply to \"natural gas pipelines\" but fuel-burning equipment such as compressors is regulated;  https://eregulations.ct.gov/eRegsPortal/Browse/RCSA?id=Title%2022a|22a-174|22a-174-22e|22a-174-22e\n","Merrily Gere, 860 424-3416, \nMerrily.Gere@ct.gov"]
["DC","No Sources in District"]
["DE","Control technology standards for IC engine prime movers and 42 ppmvd (1-hr avg) for gas fueled combustion turbine prime movers and 88 ppmvd (1-hr avg) for oil fueled combustion turbine prime movers","http://regulations.delaware.gov/AdminCode/title7/1000/1100/1112.shtml  ","Robert Clausen robert.clausen@delaware.gov\n302-739-9402"]
["MA"]
["MD","Spark ignited rich burn\t2400 HP or greater\t110 ppmv\nSpark ignited lean burn\t2400 HP or greater\t125 ppmv\nDiesel engines\t3100 HP or greater\t175 ppmv\nDual fuel engines\t4400 HP or greater\t125 ppmv","COMAR 26.11.29\nhttps://2019-dsd.maryland.gov/regulations/Pages/26.11.29.02.aspx","Randy Mosier, 410 537 4488,\nRandy.Mosier@maryland.gov"]
["ME",null,"Source specific BACT ","Jane Gilbert, (207) 530-0554, jane.gilbert@maine.gov"]
["NH",null,"Regulated under Part Env-A 1306 Combustion Turbines (no separate rule for compressor stations): https://www.des.nh.gov/sites/g/files/ehbemt341/files/documents/2020-01/Env-A%201300.pdf","Cathy A. Beahm\ncatherine.a.beahm@des.nh.gov\n(603) 271-6793\n"]
["NJ","Compressor turbines : 42 ppmvd @15% oxygen , Two stroke lean burn engine: 3.0 Grams/bhp-hr, Four storke lean burn or Four stoke rich burn : 2.0  Grams/bhp-hr","Compressor Turbines: N.J.A.C. 7:27 19.5(l)    Compressor Engines: N.J.A.C. 7:27-19.8(g) and (h)\nhttp://www.state.nj.us/dep/aqm/Sub19.pdf","Ketan Bhandutia  (609) 984-6356 Ketan.Bhandutia@dep.nj.gov \n","Aveveraging: Average of three one-hour test each performed over a consecutive 60-minute perod per N.J.A.C. 7:27-19.15(a)2"]
["NY","Covered under Subpart 227-2 - turbine requirements","Covered under NOx RACT Rule (Subpart 227-2) Effective: 7/8/2010, Submitted: 8/19/2010, Final:  77 FR 13974, 78 Fr 41846;   www.dec.ny.gov/regs/2492.html","Mike Jennings, mike.jennings@dec.ny.gov \nRobert Bielawa, robert.bielawa@dec.ny.gov"]
["PA","Pls see limits for Engines for Reciprocating Compressor or limit for Turbines for Rotary Compressor","PROPOSED - Additional RACT Requirements for Major Sources of NOx and VOCs for the 2015 Ozone NAAQS Sections 129.111 - 129.115. Additional RACT Requirements for Major Sources of NOx and VOCs. ","Susan Hoyle, shoyle@pa.gov;\nRandy Bordner ranbordner@pa.gov;\nSusan Foster, sufoster@pa.gov;\nSean Wenrich, sewenrich@pa.gov;"," "]
["RI",null,"One source; Source specific RACT for engines at compressor station ","Karen Slattery, karen.slattery@dem.ri.gov"]
["VA  (OTR Jurisdiction)","Transco 185 (Registration Number 71958), High Pressure Fuel Injection, 17.6 lbs NOx/hr per engine.  Dominion Cove Point LNG (Registration Number 71809), SCR, 0.15 grams/brake horse power-hr","9 VAC 5 Chapter 40 Article 51, case by case RACT ","Doris McLeod\ndoris.mcleod@deq.virginia.gov","Unit specific limitations included in the 2008 O3 RACT submission."]
["VT","No Sources in State"]

{"sheet":"VOCs","index":14,"n_rows":16,"n_cols":31,"rows_kept":16,"cut":false,"hidden":false,"merged":[[0,26,0,27],[0,29,0,30],[0,0,0,5],[0,7,0,9],[0,11,0,12],[0,14,0,16],[0,18,0,20],[0,22,0,24]]}
["Consumer Products",null,null,null,null,null,null,"AIM",null,null,null,"Asphalt Paving",null,null,"PFCs",null,null,null,"MERR",null,null,null,"Solvent Degreasing",null,null,null,"ICI Adhesives and Sealants",null,null,"Large Above Ground VOC Storage Tanks"]
["State","Phase I 2001","Phase II 2006","Phase III 2010","Phase IV 2012/2013","Phase V 2018 (RTG)",null,"State","Phase I 2001","Phase II 2011",null,"State","6/7/2006",null,"State","Phase I 2001","Phase II 2006",null,"State","Phase I 2001","Phase II 2009/2011",null,"State","Phase I 2001","Phase II 2012",null,"State","2006",null,"State","2010"]
["Source Type","Area","Area","Area","Area","Area",null,"Source Type","Area","Area",null,"Source Type","Area",null,"Source Type","Area","Area",null,"Source Type","Mostly Area, Some Point","Mostly Area, Some Point",null,"Source Type","Area and Point","Mostly Area, Some Point",null,"Source Type","Mostly Area, Some Point",null,"Source Type","Point"]
["CT","Effective","Effective","Effective","Effective","Not Enacted",null,"CT","Effective","Effective",null,"CT","Effective",null,"CT","Federal","Federal",null,"CT","Effective","Not enacted",null,"CT","Effective","Not enacted",null,"CT","Effective",null,"CT","Effective"]
["DC","Effective","Effective","Not Enacted","Not Enacted","Not Enacted",null,"DC","Effective","Not Enacted",null,"DC","N/A",null,"DC","Effective","Effective",null,"DC","Effective","Effective",null,"DC","Effective Similar Rule","Not enacted",null,"DC","Effective",null,"DC","N/A"]
["DE","Effective","Effective","Effective","Effective","Not Enacted",null,"DE","Effective","Effective",null,"DE","Effective Similar Rule",null,"DE","Federal","Federal",null,"DE","Effective","Effective",null,"DE","Effective","Effective 8/11/21, Compliance Date 8/11/22",null,"DE","Effective",null,"DE","Not enacted"]
["MA","Effective ","Effective","Not Enacted","Effective (partial)","Not Enacted",null,"MA","Effective ","Not Enacted",null,"MA","N/A",null,"MA","Federal","Federal",null,"MA","Effective Similar Rule","Not enacted",null,"MA","Effective","Not enacted",null,"MA","Effective",null,"MA","Not enacted"]
["MD","Effective","Effective","Effective ","Effective ","Not Enacted",null,"MD","Effective","Effective ",null,"MD","N/A",null,"MD","Effective","Effective",null,"MD","Effective Similar Rule","Effective",null,"MD","Effective Similar Rule","Not enacted",null,"MD","Effective",null,"MD","Not enacted"]
["ME","Effective ","Effective ","Not Enacted","Not Enacted","Not Enacted",null,"ME","Effective ","Not Enacted",null,"ME","Effective ",null,"ME","Federal","Federal",null,"ME","Effective","Not enacted",null,"ME","Effective","Not enacted",null,"ME","Similar Rule Adopted: Prior to Model",null,"ME","Not enacted"]
["NH","Effective","Effective ","Effective","Effective ","Not Enacted",null,"NH","Effective ","Not Enacted",null,"NH","N/A",null,"NH","Effective/ Federal","Effective/ Federal",null,"NH","Not enacted","Not enacted",null,"NH","Effective","Not enacted",null,"NH","Not enacted",null,"NH","Not enacted"]
["NJ","Effective ","Effective","Not Enacted","Not Enacted","Not Enacted",null,"NJ","Effective","Proposal in progress",null,"NJ","Effective ",null,"NJ","Effective","Effective",null,"NJ","Effective","Not enacted",null,"NJ","Effective","Not enacted",null,"NJ","Effective",null,"NJ","Effective"]
["NY","Effective","Effective","Effective 1/1/2022","Effective, Compliance Date 1/1/2022","Not Enacted",null,"NY","Effective","Compliance date 7/1/2022",null,"NY","Effective",null,"NY","Effective","Effective",null,"NY","Effective","under development",null,"NY","Effective","Compliance Date 12/31/22",null,"NY","Effective",null,"NY","Not enacted"]
["PA","Effective ","Effective ","Not Enacted","Not Enacted","Not Enacted",null,"PA","Effective ","Not Enacted",null,"PA","N/A",null,"PA","Federal","Federal",null,"PA","Effective","Not enacted",null,"PA","Effective","Not enacted",null,"PA","Effective",null,"PA","Effective"]
["RI","Effective ","Effective ","Effective ","Effective ","Not Enacted",null,"RI","Effective","Effective ",null,"RI","Effective",null,"RI","Federal","Federal",null,"RI","Effective Similar Rule","Effective Similar Rule",null,"RI","Effective Similar Rule","Not enacted",null,"RI","Effective",null,"RI","Not enacted"]
["VA","Effective","Effective  ","Not Enacted","Not Enacted","Not Enacted",null,"VA","Effective  ","Not Enacted",null,"VA","N/A",null,"VA","Effective","Effective",null,"VA","Effective","Not enacted",null,"VA","Effective","Not enacted",null,"VA","Effective",null,"VA","Not enacted"]
["VT","Not Enacted","Not Enacted","Not Enacted","Not Enacted","Not Enacted",null,"VT","Not Enacted","Not Enacted",null,"VT","N/A",null,"VT","Federal","Federal",null,"VT","Not enacted","Not enacted",null,"VT","Not enacted","Not enacted",null,"VT","Effective",null,"VT","equivalent permit limits"]